Directorate ,Transaction Date,Transaction Amount,Merchant Name,GL Code,Activity
Chief Executives Directorate,02/01/2024,6.98,TEDDINGTON HARDWARE,RC376846500,Mayoralty Miscellaneous Expenses
Environment & Community Services Directorate,02/01/2024,50,OYSTER ONLINE,RN540041530,Libraries General Other Office Expenses
Environment & Community Services Directorate,02/01/2024,50,OYSTER ONLINE,RN540041530,Libraries General Other Office Expenses
Environment & Community Services Directorate,02/01/2024,45,OYSTER ONLINE,RN540041530,Libraries General Other Office Expenses
Environment & Community Services Directorate,02/01/2024,50,OYSTER ONLINE,RN540041530,Libraries General Other Office Expenses
Environment & Community Services Directorate,02/01/2024,50,OYSTER ONLINE,RN540041530,Libraries General Other Office Expenses
Environment & Community Services Directorate,02/01/2024,80,WICKES BUILDING,RN532040000,Teddington Pool & Fitness Cent Equipment
Housing & Regeneration Directorate,02/01/2024,414,EBIS-HSE,RH419013100,SHAREDFACILITIESMANAGEMENT Training
Adult Social Services Directorate,02/01/2024,57.48,WWW.CROMWELL.CO.UK,RS114340200,DC - Woodville Centre Materials
Adult Social Services Directorate,02/01/2024,88.11,TESCO STORES,RS114340510,DC - Woodville Centre Food & Consumables
Adult Social Services Directorate,02/01/2024,16,AMZNMKTPLACE,RS114240200,The Access Project Materials
Resources Directorate,03/01/2024,144,BKG HOTEL AT BOOKING.C,RR380613100,Shared Audit Service Training
Environment & Community Services Directorate,03/01/2024,5.2,SAINSBURYS ,RN540040510,Libraries General Food & Consumables
Housing & Regeneration Directorate,03/01/2024,111.86,AMZNMKTPLACE,RH421041520,Fm(R) - General Stationery
Housing & Regeneration Directorate,03/01/2024,111.86,AMZNMKTPLACE,RH421041520,Fm(R) - General Stationery
Housing & Regeneration Directorate,03/01/2024,111.86,AMZNMKTPLACE,RH421041520,Fm(R) - General Stationery
Chief Executives Directorate,04/01/2024,6.5,POUNDLAND LTD,RC376846500,Mayoralty Miscellaneous Expenses
Chief Executives Directorate,04/01/2024,4.1,MARKS&SPENCER PLC SACA,RC376846500,Mayoralty Miscellaneous Expenses
Environment & Community Services Directorate,04/01/2024,42.24,AMZNMKTPLACE,RN540040000,Libraries General Equipment
Environment & Community Services Directorate,04/01/2024,201.11,NEXTDAYCOFFEE.CO.UK,RN540040510,Libraries General Food & Consumables
Environment & Community Services Directorate,04/01/2024,77.98,AMZNMKTPLACE,RN540040510,Libraries General Food & Consumables
Environment & Community Services Directorate,04/01/2024,56.14,TRAINLINE,RN563731500,MinorSchemes Travelling expenses
Adult Social Services Directorate,04/01/2024,13.5,POUNDLAND LTD,RS144240200,Supp Employ - Cafe Sunshine Materials
Adult Social Services Directorate,04/01/2024,119.66,TESCO STORES,RS144240510,Supp Employ - Cafe Sunshine Food & Consumables
Adult Social Services Directorate,04/01/2024,420.01,BIDFOOD,RS144240510,Supp Employ - Cafe Sunshine Food & Consumables
Environment & Community Services Directorate,04/01/2024,35.89,AMAZON.CO.UK ,RN521140510,Arts Infrastructure Food & Consumables
Adult Social Services Directorate,04/01/2024,132.81,TESCO STORES,RS114240510,The Access Project Food & Consumables
Chief Executives Directorate,05/01/2024,27.5,WAITROSE ,RC376846500,Mayoralty Miscellaneous Expenses
Chief Executives Directorate,05/01/2024,9,WAITROSE ,RC376846500,Mayoralty Miscellaneous Expenses
Environment & Community Services Directorate,05/01/2024,299.64,AMAZON.CO.UK ,RN540040000,Libraries General Equipment
Environment & Community Services Directorate,05/01/2024,66.59,AMZNMKTPLACE,RN540040510,Libraries General Food & Consumables
Environment & Community Services Directorate,05/01/2024,264.4,TILLROLLSTHERMAL,RN540041520,Libraries General Stationery
Housing & Regeneration Directorate,05/01/2024,169.99,AMZNMKTPLACE,RH421041520,Fm(R) - General Stationery
Adult Social Services Directorate,05/01/2024,25.64,AMZNMKTPLACE,RS144240200,Supp Employ - Cafe Sunshine Materials
Adult Social Services Directorate,05/01/2024,2,OYSTER ONLINE,RS194331500,Directorate Business Support Travelling expenses
Adult Social Services Directorate,05/01/2024,159,TVLICENSING.CO.UK,RS114240200,The Access Project Materials
Chief Executives Directorate,06/01/2024,20,TFL OYSTER AUTO TOPUP,RC376446500,Business Support Miscellaneous Expenses
Adult Social Services Directorate,06/01/2024,114.11,TESCO STORES,RS144240510,Supp Employ - Cafe Sunshine Food & Consumables
Adult Social Services Directorate,06/01/2024,4,POUNDLAND LTD ,RS144240200,Supp Employ - Cafe Sunshine Materials
Adult Social Services Directorate,06/01/2024,3.78,ICELAND ,RS144240510,Supp Employ - Cafe Sunshine Food & Consumables
Adult Social Services Directorate,06/01/2024,30.22,AMZNMKTPLACE,RS195040000,Information and Projects Equipment
Environment & Community Services Directorate,06/01/2024,73.13,MAILCHIMP,RN524455900,MarketingandCommunications Other Third Party Payments
Environment & Community Services Directorate,07/01/2024,66.59,AMZNMKTPLACE,RN540040510,Libraries General Food & Consumables
Adult Social Services Directorate,07/01/2024,10,OYSTER BUS AUTOLOAD,RS194331500,Directorate Business Support Travelling expenses
Environment & Community Services Directorate,08/01/2024,41.99,WWW.SCREWFIX.COM,RN540040000,Libraries General Equipment
Chief Executives Directorate,08/01/2024,246,PROMO PARROT,RC376446500,Business Support Miscellaneous Expenses
Chief Executives Directorate,08/01/2024,238.8,WWW.LOCAL.GOV.UK,RC376446500,Business Support Miscellaneous Expenses
Adult Social Services Directorate,08/01/2024,489.7,BIDFOOD,RS144240510,Supp Employ - Cafe Sunshine Food & Consumables
Environment & Community Services Directorate,08/01/2024,34.99,EVENTBRITE.COM ORG FEE,RN528042080,Waste Recycling Advertising / Publicity
Adult Social Services Directorate,09/01/2024,18.94,TRAINLINE,RS194331500,Directorate Business Support Travelling expenses
Environment & Community Services Directorate,09/01/2024,16.35,LIDL GB RICHMOND,RN540040000,Libraries General Equipment
Adult Social Services Directorate,09/01/2024,8,MOBILE AND VAPE SHOP,RS144240200,Supp Employ - Cafe Sunshine Materials
Adult Social Services Directorate,09/01/2024,161.75,SAINSBURYS.CO.UK,RS114140510,DC-Sheen Lane Food & Consumables
Adult Social Services Directorate,09/01/2024,10,RICHMOND,RS114246500,The Access Project Miscellaneous Expenses
Chief Executives Directorate,10/01/2024,80,WWW.HILLINGDON.GOV.UK,RC376846500,Mayoralty Miscellaneous Expenses
Environment & Community Services Directorate,10/01/2024,5.2,SAINSBURYS ,RN540040510,Libraries General Food & Consumables
Environment & Community Services Directorate,10/01/2024,8.99,AMAZON PRIME ,RN540041530,Libraries General Other Office Expenses
Housing & Regeneration Directorate,10/01/2024,118.77,AMZNMKTPLACE,RH419040200,SHAREDFACILITIESMANAGEMENT Materials
Adult Social Services Directorate,10/01/2024,20,TFL OYSTER AUTO TOPUP,RS194331500,Directorate Business Support Travelling expenses
Adult Social Services Directorate,10/01/2024,20,TFL OYSTER AUTO TOPUP,RS194331500,Directorate Business Support Travelling expenses
Adult Social Services Directorate,10/01/2024,20,OYSTER BUS AUTOLOAD,RS194331500,Directorate Business Support Travelling expenses
Adult Social Services Directorate,10/01/2024,16.99,AMZNMKTPLACE,RS114240200,The Access Project Materials
Resources Directorate,10/01/2024,72.47,AMZNMKTPLACE,RR392546500,IT Service Miscellaneous Expenses
Chief Executives Directorate,11/01/2024,20,TFL OYSTER AUTO TOPUP,RC376446500,Business Support Miscellaneous Expenses
Adult Social Services Directorate,11/01/2024,259,COFFEEBAY,RS144240510,Supp Employ - Cafe Sunshine Food & Consumables
Adult Social Services Directorate,11/01/2024,9.3,TESCO STORES,RS114340510,DC - Woodville Centre Food & Consumables
Adult Social Services Directorate,11/01/2024,20,OYSTER BUS AUTOLOAD,RS194331500,Directorate Business Support Travelling expenses
Adult Social Services Directorate,11/01/2024,20,OYSTER BUS AUTOLOAD,RS194331500,Directorate Business Support Travelling expenses
Adult Social Services Directorate,11/01/2024,37.79,TRAINLINE,RS140031500,LD - Commissioning Travelling expenses
Environment & Community Services Directorate,11/01/2024,23.98,ZOOM.US ,RN524455900,MarketingandCommunications Other Third Party Payments
Adult Social Services Directorate,11/01/2024,207.35,TESCO STORES,RS114240510,The Access Project Food & Consumables
Environment & Community Services Directorate,12/01/2024,50.84,AMAZON.CO.UK ,RN540040000,Libraries General Equipment
Environment & Community Services Directorate,12/01/2024,143.99,WWW.OFFICEFURNITUREONL,RN540040100,Libraries General Furniture
Adult Social Services Directorate,12/01/2024,88.96,AMZNMKTPLACE,RS114346500,DC - Woodville Centre Miscellaneous Expenses
Environment & Community Services Directorate,13/01/2024,186.71,MIRO.COM,RN512146500,Policy & Design Miscellaneous Expenses
Adult Social Services Directorate,13/01/2024,130.63,TESCO STORES,RS144240510,Supp Employ - Cafe Sunshine Food & Consumables
Adult Social Services Directorate,13/01/2024,20,OYSTER BUS AUTOLOAD,RS194331500,Directorate Business Support Travelling expenses
Chief Executives Directorate,14/01/2024,302,WWW.HAYMARKET.COM,RC376446500,Business Support Miscellaneous Expenses
Adult Social Services Directorate,14/01/2024,20,OYSTER BUS AUTOLOAD,RS194331500,Directorate Business Support Travelling expenses
Resources Directorate,14/01/2024,33.92,AMZNMKTPLACE,RR392546500,IT Service Miscellaneous Expenses
Resources Directorate,14/01/2024,25.78,AMZNMKTPLACE,RR392546500,IT Service Miscellaneous Expenses
Environment & Community Services Directorate,15/01/2024,50,OYSTER ONLINE,RN540041530,Libraries General Other Office Expenses
Adult Social Services Directorate,15/01/2024,21.91,VIOVET LUTON ,RS114346500,DC - Woodville Centre Miscellaneous Expenses
Adult Social Services Directorate,15/01/2024,162.14,GVG LIMITED - HAM,RS114346500,DC - Woodville Centre Miscellaneous Expenses
Adult Social Services Directorate,15/01/2024,15.96,WH SMITH EAST SHEEN,RS114141520,DC-Sheen Lane Stationery
Environment & Community Services Directorate,15/01/2024,4,LINKTREE  LINKTREE,RN524455900,MarketingandCommunications Other Third Party Payments
Adult Social Services Directorate,15/01/2024,8.48,AMZNMKTPLACE,RS114240000,The Access Project Equipment
Chief Executives Directorate,16/01/2024,1.15,SHELL OAK LANE,RC376846500,Mayoralty Miscellaneous Expenses
Environment & Community Services Directorate,16/01/2024,50,OYSTER ONLINE,RN540041530,Libraries General Other Office Expenses
Environment & Community Services Directorate,16/01/2024,13.62,LIDL GB RICHMOND,RN540040000,Libraries General Equipment
Environment & Community Services Directorate,16/01/2024,6.5,SAINSBURYS ,RN540040510,Libraries General Food & Consumables
Environment & Community Services Directorate,16/01/2024,40,OYSTER ONLINE,RN540041530,Libraries General Other Office Expenses
Environment & Community Services Directorate,16/01/2024,260.72,NEXTDAYCOFFEE.CO.UK,RN540040510,Libraries General Food & Consumables
Chief Executives Directorate,16/01/2024,216,WWW.PATCH.WORK,RC376446500,Business Support Miscellaneous Expenses
Housing & Regeneration Directorate,16/01/2024,258,WWW.SHEBANGSECURITY.CO,RH420320010,Public Halls - Bullen Hall Property Maintenance
Housing & Regeneration Directorate,16/01/2024,334.64,SPECIALISED CANVAS,RH419040200,SHAREDFACILITIESMANAGEMENT Materials
Adult Social Services Directorate,16/01/2024,346.35,BIDFOOD,RS144240510,Supp Employ - Cafe Sunshine Food & Consumables
Resources Directorate,16/01/2024,32.34,EBAY ,RR392546500,IT Service Miscellaneous Expenses
Chief Executives Directorate,16/01/2024,33,MONDAY.COM,RC375146500,Communications Team Miscellaneous Expenses
Chief Executives Directorate,16/01/2024,19.99,EVENTBRITE.COM ORG FEE,RC374342080,Community Engagement Advertising / Publicity
Adult Social Services Directorate,16/01/2024,8.88,AMZNMKTPLACE,RS114240000,The Access Project Equipment
Environment & Community Services Directorate,17/01/2024,33.96,AMZNMKTPLACE,RN540040510,Libraries General Food & Consumables
Environment & Community Services Directorate,17/01/2024,35.78,AMZNMKTPLACE,RN540040510,Libraries General Food & Consumables
Chief Executives Directorate,17/01/2024,20,OYSTER BUS AUTOLOAD,RC376446500,Business Support Miscellaneous Expenses
Chief Executives Directorate,17/01/2024,20,TFL OYSTER AUTO TOPUP,RC376446500,Business Support Miscellaneous Expenses
Environment & Community Services Directorate,17/01/2024,16.99,WWW.SCREWFIX.COM,RN533540000,Lincoln Field Sports Ground Equipment
Adult Social Services Directorate,17/01/2024,153.41,DATACAMP INC.,RS195643500,Training - Adults Conference Expenses
Adult Social Services Directorate,17/01/2024,20,OYSTER BUS AUTOLOAD,RS194331500,Directorate Business Support Travelling expenses
Environment & Community Services Directorate,17/01/2024,8.99,AMZNMKTPLACE,RN524540200,ExhibitionsandCollections Materials
Adult Social Services Directorate,17/01/2024,13.98,AMZNMKTPLACE,RS114240000,The Access Project Equipment
Adult Social Services Directorate,17/01/2024,43.8,AMZNMKTPLACE,RS114240510,The Access Project Food & Consumables
Resources Directorate,17/01/2024,828,REQUIRE IT LTD,RR392546500,IT Service Miscellaneous Expenses
Chief Executives Directorate,18/01/2024,10,THE OPEN BOOK,RC376846500,Mayoralty Miscellaneous Expenses
Chief Executives Directorate,18/01/2024,20,OYSTER BUS AUTOLOAD,RC376446500,Business Support Miscellaneous Expenses
Chief Executives Directorate,18/01/2024,10,OYSTER BUS AUTOLOAD,RC376446500,Business Support Miscellaneous Expenses
Chief Executives Directorate,18/01/2024,10,OYSTER BUS AUTOLOAD,RC376446500,Business Support Miscellaneous Expenses
Adult Social Services Directorate,18/01/2024,156.44,WWW.GOMPELS.CO.UK,RS114123500,DC-Sheen Lane Cleaning
Adult Social Services Directorate,18/01/2024,20,TFL OYSTER AUTO TOPUP,RS194331500,Directorate Business Support Travelling expenses
Adult Social Services Directorate,18/01/2024,20,OYSTER BUS AUTOLOAD,RS194331500,Directorate Business Support Travelling expenses
Adult Social Services Directorate,18/01/2024,20,OYSTER BUS AUTOLOAD,RS194331500,Directorate Business Support Travelling expenses
Adult Social Services Directorate,18/01/2024,20,OYSTER BUS AUTOLOAD,RS194331500,Directorate Business Support Travelling expenses
Adult Social Services Directorate,18/01/2024,4.99,TESCO SUBSCRIPTION,RS114240510,The Access Project Food & Consumables
Adult Social Services Directorate,18/01/2024,151.84,TESCO STORES,RS114240510,The Access Project Food & Consumables
Resources Directorate,18/01/2024,103.93,AMZNMKTPLACE,RR392546500,IT Service Miscellaneous Expenses
Resources Directorate,18/01/2024,159.99,AMAZON.CO.UK ,RR392546500,IT Service Miscellaneous Expenses
Chief Executives Directorate,19/01/2024,35.7,PP APEX PLUS CARS,RC376846500,Mayoralty Miscellaneous Expenses
Environment & Community Services Directorate,19/01/2024,305.94,WWW.ARGOS.CO.UK,RN540040000,Libraries General Equipment
Environment & Community Services Directorate,19/01/2024,43.97,AMZNMKTPLACE,RN540040000,Libraries General Equipment
Chief Executives Directorate,19/01/2024,10,EB  WORK IN THEATRE TE,RC376446500,Business Support Miscellaneous Expenses
Chief Executives Directorate,19/01/2024,20,OYSTER BUS AUTOLOAD,RC376446500,Business Support Miscellaneous Expenses
Chief Executives Directorate,19/01/2024,20,OYSTER BUS AUTOLOAD,RC376446500,Business Support Miscellaneous Expenses
Housing & Regeneration Directorate,19/01/2024,113.82,AMZNMKTPLACE,RH420440510,Public Halls - York House Hall Food & Consumables
Housing & Regeneration Directorate,19/01/2024,9.94,AMZNMKTPLACE,RH420440510,Public Halls - York House Hall Food & Consumables
Housing & Regeneration Directorate,19/01/2024,166.46,AMZNMKTPLACE,RH420440510,Public Halls - York House Hall Food & Consumables
Housing & Regeneration Directorate,19/01/2024,48.63,AMZNMKTPLACE,RH421041520,Fm(R) - General Stationery
Housing & Regeneration Directorate,19/01/2024,41.72,AMZNMKTPLACE,RH420440510,Public Halls - York House Hall Food & Consumables
Adult Social Services Directorate,19/01/2024,192.45,TESCO STORES,RS144240510,Supp Employ - Cafe Sunshine Food & Consumables
Adult Social Services Directorate,19/01/2024,20,OYSTER BUS AUTOLOAD,RS194331500,Directorate Business Support Travelling expenses
Chief Executives Directorate,20/01/2024,20,TFL OYSTER AUTO TOPUP,RC376446500,Business Support Miscellaneous Expenses
Adult Social Services Directorate,20/01/2024,20,OYSTER BUS AUTOLOAD,RS194331500,Directorate Business Support Travelling expenses
Adult Social Services Directorate,20/01/2024,20,OYSTER BUS AUTOLOAD,RS194331500,Directorate Business Support Travelling expenses
Environment & Community Services Directorate,21/01/2024,12.99,ZOOM.US ,RN540442640,Electronic Services Software Maintenance
Housing & Regeneration Directorate,21/01/2024,41.88,AMZNMKTPLACE,RH420440510,Public Halls - York House Hall Food & Consumables
Housing & Regeneration Directorate,21/01/2024,137.85,AMZNMKTPLACE,RH421040510,Fm(R) - General Food & Consumables
Adult Social Services Directorate,21/01/2024,20.98,AMZNMKTPLACE,RS114340000,DC - Woodville Centre Equipment
Chief Executives Directorate,21/01/2024,12.2,SIMPLECAST.COM/BILL,RC375146500,Communications Team Miscellaneous Expenses
Adult Social Services Directorate,21/01/2024,20,OYSTER BUS AUTOLOAD,RS194331500,Directorate Business Support Travelling expenses
Adult Social Services Directorate,21/01/2024,20,OYSTER BUS AUTOLOAD,RS194331500,Directorate Business Support Travelling expenses
Adult Social Services Directorate,21/01/2024,10,TFL OYSTER AUTO TOPUP,RS194331500,Directorate Business Support Travelling expenses
Adult Social Services Directorate,21/01/2024,8.99,AMAZON PRIME ,RS114240200,The Access Project Materials
Chief Executives Directorate,22/01/2024,33.88,WAITROSE ,RC376846500,Mayoralty Miscellaneous Expenses
Environment & Community Services Directorate,22/01/2024,22.95,AMZNMKTPLACE,RN540040000,Libraries General Equipment
Resources Directorate,22/01/2024,62,HMCTS WESTLONDON,RR382142020,BusinessRates Legal & Court Fees
Chief Executives Directorate,22/01/2024,99.2,FACEBK,RC376446500,Business Support Miscellaneous Expenses
Adult Social Services Directorate,23/01/2024,206.34,TRAINLINE,RS194331500,Directorate Business Support Travelling expenses
Adult Social Services Directorate,23/01/2024,98.73,TRAINLINE,RS194331500,Directorate Business Support Travelling expenses
Resources Directorate,23/01/2024,512.5,HMCTS WESTLONDON,RR381642020,Council Tax Legal & Court Fees
Adult Social Services Directorate,23/01/2024,12.4,TESCO STORES,RS114340510,DC - Woodville Centre Food & Consumables
Adult Social Services Directorate,23/01/2024,148.65,SAINSBURYS.CO.UK,RS114140510,DC-Sheen Lane Food & Consumables
Adult Social Services Directorate,23/01/2024,"3,148.75",ZOOM.US ,RS195142605,Systems and Information Gov Application purchases
Resources Directorate,23/01/2024,497.6,CCL COMPUTERS LTD,RR392546500,IT Service Miscellaneous Expenses
Environment & Community Services Directorate,24/01/2024,3.65,MARKS&SPENCER PLC,RN540040510,Libraries General Food & Consumables
Environment & Community Services Directorate,24/01/2024,9.45,WAITROSE,RN540040510,Libraries General Food & Consumables
Environment & Community Services Directorate,24/01/2024,97.8,NEXTDAYCOFFEE.CO.UK,RN540040510,Libraries General Food & Consumables
Environment & Community Services Directorate,24/01/2024,20.8,TESCO METRO ,RN540040000,Libraries General Equipment
Chief Executives Directorate,24/01/2024,86.26,TSOHOST,RC376446500,Business Support Miscellaneous Expenses
Chief Executives Directorate,24/01/2024,150,ARTS PROFESSIONAL,RC376446500,Business Support Miscellaneous Expenses
Chief Executives Directorate,24/01/2024,20,TFL OYSTER AUTO TOPUP,RC376446500,Business Support Miscellaneous Expenses
Chief Executives Directorate,24/01/2024,20,OYSTER BUS AUTOLOAD,RC376446500,Business Support Miscellaneous Expenses
Housing & Regeneration Directorate,24/01/2024,35.88,AMZNBUSINESS,RH420440510,Public Halls - York House Hall Food & Consumables
Housing & Regeneration Directorate,24/01/2024,53.82,AMZNBUSINESS,RH420440510,Public Halls - York House Hall Food & Consumables
Adult Social Services Directorate,24/01/2024,121.87,TESCO STORES,RS144240510,Supp Employ - Cafe Sunshine Food & Consumables
Adult Social Services Directorate,24/01/2024,69.59,ADEXA.CO.UK,RS114340000,DC - Woodville Centre Equipment
Adult Social Services Directorate,24/01/2024,30.57,NISBETS LTD,RS114346500,DC - Woodville Centre Miscellaneous Expenses
Adult Social Services Directorate,24/01/2024,157.8,CARTRIDGEPEOPLE.COM,RS114341520,DC - Woodville Centre Stationery
Housing & Regeneration Directorate,24/01/2024,490,AMZNMKTPLACE,RH900046500,HousingPcardholdingaccount Miscellaneous Expenses
Chief Executives Directorate,24/01/2024,78,ISTOCK.COM,RC375146500,Communications Team Miscellaneous Expenses
Adult Social Services Directorate,24/01/2024,20,OYSTER BUS AUTOLOAD,RS194331500,Directorate Business Support Travelling expenses
Adult Social Services Directorate,24/01/2024,20,TFL OYSTER AUTO TOPUP,RS194331500,Directorate Business Support Travelling expenses
Environment & Community Services Directorate,24/01/2024,76.92,DNH GO DADDY EUROPE GB,RN524755900,Arts Other Third Party Payments
Environment & Community Services Directorate,24/01/2024,30.33,FACEBK,RN524742080,Arts Advertising / Publicity
Resources Directorate,24/01/2024,159,AMAZON.CO.UK ,RR392546500,IT Service Miscellaneous Expenses
Environment & Community Services Directorate,25/01/2024,127.72,AMAZON,RN540040000,Libraries General Equipment
Environment & Community Services Directorate,25/01/2024,5.2,SAINSBURYS,RN540040510,Libraries General Food & Consumables
Chief Executives Directorate,25/01/2024,20,TFL OYSTER AUTO TOPUP,RC376446500,Business Support Miscellaneous Expenses
Adult Social Services Directorate,25/01/2024,387.11,BIDFOOD,RS144240510,Supp Employ - Cafe Sunshine Food & Consumables
Adult Social Services Directorate,25/01/2024,152.65,TESCO STORES,RS114340510,DC - Woodville Centre Food & Consumables
Adult Social Services Directorate,25/01/2024,20,OYSTER BUS AUTOLOAD,RS194331500,Directorate Business Support Travelling expenses
Adult Social Services Directorate,25/01/2024,20,TFL OYSTER AUTO TOPUP,RS194331500,Directorate Business Support Travelling expenses
Environment & Community Services Directorate,25/01/2024,169.99,SP THE BRICK BIN,RN540040000,Libraries General Equipment
Adult Social Services Directorate,25/01/2024,209.45,TESCO STORES,RS114240510,The Access Project Food & Consumables
Chief Executives Directorate,26/01/2024,103.9,WWW.AVANTIWESTCOAST.CO,RC376446500,Business Support Miscellaneous Expenses
Chief Executives Directorate,26/01/2024,20,OYSTER BUS AUTOLOAD,RC376446500,Business Support Miscellaneous Expenses
Chief Executives Directorate,26/01/2024,20,OYSTER BUS AUTOLOAD,RC376446500,Business Support Miscellaneous Expenses
Housing & Regeneration Directorate,26/01/2024,169.99,AMZNMKTPLACE,RH420440510,Public Halls - York House Hall Food & Consumables
Adult Social Services Directorate,26/01/2024,59.44,AMAZON,RS114341520,DC - Woodville Centre Stationery
Adult Social Services Directorate,26/01/2024,20,OYSTER BUS AUTOLOAD,RS194331500,Directorate Business Support Travelling expenses
Adult Social Services Directorate,26/01/2024,20,OYSTER BUS AUTOLOAD,RS194331500,Directorate Business Support Travelling expenses
Chief Executives Directorate,27/01/2024,20,OYSTER BUS AUTOLOAD,RC376446500,Business Support Miscellaneous Expenses
Adult Social Services Directorate,27/01/2024,32.15,AMAZON,RS114346500,DC - Woodville Centre Miscellaneous Expenses
Adult Social Services Directorate,27/01/2024,20,OYSTER BUS AUTOLOAD,RS194331500,Directorate Business Support Travelling expenses
Adult Social Services Directorate,27/01/2024,20,OYSTER BUS AUTOLOAD,RS194331500,Directorate Business Support Travelling expenses
Chief Executives Directorate,28/01/2024,78.99,AMZNMKTPLACE,RC376446500,Business Support Miscellaneous Expenses
Chief Executives Directorate,28/01/2024,36.08,AMZNMKTPLACE,RC376446500,Business Support Miscellaneous Expenses
Housing & Regeneration Directorate,28/01/2024,10.99,AMAZON,RH419040200,SHAREDFACILITIESMANAGEMENT Materials
Housing & Regeneration Directorate,28/01/2024,11.89,AMAZON,RH419040200,SHAREDFACILITIESMANAGEMENT Materials
Adult Social Services Directorate,28/01/2024,20,OYSTER BUS AUTOLOAD,RS194331500,Directorate Business Support Travelling expenses
Adult Social Services Directorate,28/01/2024,20,OYSTER BUS AUTOLOAD,RS194331500,Directorate Business Support Travelling expenses
Environment & Community Services Directorate,29/01/2024,80,MISHIPAY,RN540040000,Libraries General Equipment
Chief Executives Directorate,29/01/2024,10.94,WHSMITH.CO.UK,RC376446500,Business Support Miscellaneous Expenses
Chief Executives Directorate,29/01/2024,6.4,SAINSBURYS,RC376446500,Business Support Miscellaneous Expenses
Environment & Community Services Directorate,29/01/2024,53.91,AMAZON,RN521140200,Arts Infrastructure Materials
Environment & Community Services Directorate,29/01/2024,69.49,WWW.TTS-GROUPS.CO.UK,RN524640200,LearningandEngagement Materials
Environment & Community Services Directorate,29/01/2024,14.98,AMAZON,RN524640200,LearningandEngagement Materials
Chief Executives Directorate,30/01/2024,3.25,WAITROSE,RC376846500,Mayoralty Miscellaneous Expenses
Environment & Community Services Directorate,30/01/2024,39,AMAZON,RN540040000,Libraries General Equipment
Housing & Regeneration Directorate,30/01/2024,27,AMZNMKTPLACE,RH420440510,Public Halls - York House Hall Food & Consumables
Housing & Regeneration Directorate,30/01/2024,15.28,AMZNMKTPLACE,RH420440510,Public Halls - York House Hall Food & Consumables
Chief Executives Directorate,30/01/2024,7.99,EVENTBRITE.COM ORG FEE,RC375146500,Communications Team Miscellaneous Expenses
Chief Executives Directorate,30/01/2024,700,FACEBK,RC374342080,Community Engagement Advertising / Publicity
Chief Executives Directorate,30/01/2024,700,FACEBK,RC375154205,Communications Team Community support
Environment & Community Services Directorate,30/01/2024,700,FACEBK,RN528042080,Waste Recycling Advertising / Publicity
Environment & Community Services Directorate,30/01/2024,700,FACEBK,RN563742490,MinorSchemes Other minor services
Adult Social Services Directorate,30/01/2024,700,FACEBK,RS370246500,HealthProtection Miscellaneous Expenses
Adult Social Services Directorate,30/01/2024,5.5,AMAZON.CO.UK ,RS114240000,The Access Project Equipment
Adult Social Services Directorate,30/01/2024,170.81,AMAZON.CO.UK ,RS114223500,The Access Project Cleaning
Environment & Community Services Directorate,31/01/2024,307.8,NEXTDAYCOFFEE.CO.UK,RN540041520,Libraries General Stationery
Environment & Community Services Directorate,31/01/2024,148,FILMBANK PVSL ACC,RN540044000,Libraries General Subscriptions
Chief Executives Directorate,31/01/2024,230.4,SUMUP   MSI MEDIA LTD,RC376446500,Business Support Miscellaneous Expenses
Chief Executives Directorate,31/01/2024,20,TFL OYSTER AUTO TOPUP,RC376446500,Business Support Miscellaneous Expenses
Chief Executives Directorate,31/01/2024,10,TFL OYSTER AUTO TOPUP,RC376446500,Business Support Miscellaneous Expenses
Chief Executives Directorate,31/01/2024,20,TFL OYSTER AUTO TOPUP,RC376446500,Business Support Miscellaneous Expenses
Housing & Regeneration Directorate,31/01/2024,60,BRIDEBOOK,RH421042490,Fm(R) - General Other minor services
Housing & Regeneration Directorate,31/01/2024,40.5,AMAZON,RH420440510,Public Halls - York House Hall Food & Consumables
Housing & Regeneration Directorate,31/01/2024,45.84,AMAZON,RH420440510,Public Halls - York House Hall Food & Consumables
Housing & Regeneration Directorate,31/01/2024,43.5,AMAZON,RH419040200,SHAREDFACILITIESMANAGEMENT Materials
Adult Social Services Directorate,31/01/2024,192,COFFEEBAY,RS144240510,Supp Employ - Cafe Sunshine Food & Consumables
Adult Social Services Directorate,31/01/2024,0.01,BIDFOOD,RS144240510,Supp Employ - Cafe Sunshine Food & Consumables
Environment & Community Services Directorate,31/01/2024,51.5,DMN/TURKSHEAD,RN528042080,Waste Recycling Advertising / Publicity
Adult Social Services Directorate,31/01/2024,20,TFL OYSTER AUTO TOPUP,RS194331500,Directorate Business Support Travelling expenses
Resources Directorate,31/01/2024,89.99,AMAZON.CO.UK ,RR392546500,IT Service Miscellaneous Expenses
Resources Directorate,31/01/2024,109.95,AMAZON.CO.UK ,RR392546500,IT Service Miscellaneous Expenses
Resources Directorate,31/01/2024,118.99,AMZNMKTPLACE,RR392546500,IT Service Miscellaneous Expenses
Environment & Community Services Directorate,01/02/2024,27.45,SP SOW SEEDS,RN540040000,Libraries General Equipment
Environment & Community Services Directorate,01/02/2024,64,AMAZON,RN540040000,Libraries General Equipment
Housing & Regeneration Directorate,01/02/2024,17.08,AMZNMKTPLACE,RH421041520,Fm(R) - General Stationery
Housing & Regeneration Directorate,01/02/2024,16.98,AMZNMKTPLACE,RH421041520,Fm(R) - General Stationery
Adult Social Services Directorate,01/02/2024,490.29,BIDFOOD,RS144240510,Supp Employ - Cafe Sunshine Food & Consumables
Housing & Regeneration Directorate,01/02/2024,730,AMAZON,RH900046500,HousingPcardholdingaccount Miscellaneous Expenses
Chief Executives Directorate,01/02/2024,99.58,FACEBK,RC374342080,Community Engagement Advertising / Publicity
Chief Executives Directorate,01/02/2024,99.58,FACEBK,RC375154205,Communications Team Community support
Environment & Community Services Directorate,01/02/2024,99.58,FACEBK,RN528042080,Waste Recycling Advertising / Publicity
Adult Social Services Directorate,01/02/2024,99.58,FACEBK,RS370246500,HealthProtection Miscellaneous Expenses
Adult Social Services Directorate,01/02/2024,10,TFL OYSTER AUTO TOPUP,RS194331500,Directorate Business Support Travelling expenses
Adult Social Services Directorate,01/02/2024,10.98,AMAZON.CO.UK ,RS114240000,The Access Project Equipment
Adult Social Services Directorate,01/02/2024,36.98,AMZNMKTPLACE,RS114240000,The Access Project Equipment
Chief Executives Directorate,02/02/2024,20,OYSTER BUS AUTOLOAD,RC376446500,Business Support Miscellaneous Expenses
Adult Social Services Directorate,02/02/2024,171.52,TESCO STORES,RS144240510,Supp Employ - Cafe Sunshine Food & Consumables
Adult Social Services Directorate,02/02/2024,7.88,SP FIELDS OF GLORY M,RS114340200,DC - Woodville Centre Materials
Adult Social Services Directorate,02/02/2024,106.34,AMAZON,RS114340000,DC - Woodville Centre Equipment
Adult Social Services Directorate,02/02/2024,4.65,TESCO STORES,RS114340510,DC - Woodville Centre Food & Consumables
Environment & Community Services Directorate,02/02/2024,40,OYSTER BUS AUTOLOAD,RN510031500,Development Management Travelling expenses
Housing & Regeneration Directorate,02/02/2024,50,SWRAILWAYSELFSERVE,RH900046500,HousingPcardholdingaccount Miscellaneous Expenses
Housing & Regeneration Directorate,02/02/2024,209.99,AMAZON,RH900046500,HousingPcardholdingaccount Miscellaneous Expenses
Adult Social Services Directorate,02/02/2024,20,OYSTER BUS AUTOLOAD,RS194331500,Directorate Business Support Travelling expenses
Adult Social Services Directorate,02/02/2024,20,OYSTER BUS AUTOLOAD,RS194331500,Directorate Business Support Travelling expenses
Adult Social Services Directorate,02/02/2024,20,OYSTER BUS AUTOLOAD,RS194331500,Directorate Business Support Travelling expenses
Environment & Community Services Directorate,02/02/2024,37.98,AMAZON,RN521140000,Arts Infrastructure Equipment
Environment & Community Services Directorate,02/02/2024,37.98,AMAZON,RN524640200,LearningandEngagement Materials
Environment & Community Services Directorate,02/02/2024,148.95,HOBBYCRAFT TRADING LIM,RN524640200,LearningandEngagement Materials
Environment & Community Services Directorate,02/02/2024,54.2,MARK SG ENTERPRISES,RN524640200,LearningandEngagement Materials
Environment & Community Services Directorate,02/02/2024,33.9,ENVELOPES LTD.,RN524640200,LearningandEngagement Materials
Adult Social Services Directorate,02/02/2024,13.99,AMZNMKTPLACE,RS114240000,The Access Project Equipment
Adult Social Services Directorate,02/02/2024,154.47,AMAZON,RS114241520,The Access Project Stationery
Adult Social Services Directorate,02/02/2024,141.93,TESCO STORES,RS114240510,The Access Project Food & Consumables
Chief Executives Directorate,03/02/2024,20,TFL OYSTER AUTO TOPUP,RC376446500,Business Support Miscellaneous Expenses
Chief Executives Directorate,03/02/2024,10,TFL OYSTER AUTO TOPUP,RC376446500,Business Support Miscellaneous Expenses
Adult Social Services Directorate,03/02/2024,20,OYSTER BUS AUTOLOAD,RS194331500,Directorate Business Support Travelling expenses
Adult Social Services Directorate,03/02/2024,5.49,AMAZON.CO.UK ,RS114240000,The Access Project Equipment
Resources Directorate,03/02/2024,238.8,CCC PRO MULTISITE,RR392546500,IT Service Miscellaneous Expenses
Adult Social Services Directorate,04/02/2024,55.95,AMAZON,RS194340000,Directorate Business Support Equipment
Adult Social Services Directorate,04/02/2024,20,OYSTER BUS AUTOLOAD,RS194331500,Directorate Business Support Travelling expenses
Adult Social Services Directorate,04/02/2024,20,OYSTER BUS AUTOLOAD,RS194331500,Directorate Business Support Travelling expenses
Adult Social Services Directorate,04/02/2024,20,OYSTER BUS AUTOLOAD,RS194331500,Directorate Business Support Travelling expenses
Adult Social Services Directorate,04/02/2024,20,TFL OYSTER AUTO TOPUP,RS194331500,Directorate Business Support Travelling expenses
Resources Directorate,04/02/2024,53.97,AMAZON,RR392546500,IT Service Miscellaneous Expenses
Chief Executives Directorate,05/02/2024,38.62,EB  ENGAGING WITH WOME,RC376446500,Business Support Miscellaneous Expenses
Housing & Regeneration Directorate,05/02/2024,109.11,AMAZON,RH420440510,Public Halls - York House Hall Food & Consumables
Housing & Regeneration Directorate,05/02/2024,37.22,AMAZON,RH420440510,Public Halls - York House Hall Food & Consumables
Housing & Regeneration Directorate,05/02/2024,42.42,AMZNBUSINESS,RH420440510,Public Halls - York House Hall Food & Consumables
Environment & Community Services Directorate,05/02/2024,170,SQUARESPACE INC.,RN524755900,Arts Other Third Party Payments
Environment & Community Services Directorate,05/02/2024,22.38,EB  LEARNING AND QUEER,RN524013100,ArtsSalaries Training
Adult Social Services Directorate,06/02/2024,77.98,NISBETS LTD,RS144240000,Supp Employ - Cafe Sunshine Equipment
Adult Social Services Directorate,06/02/2024,97.44,SAINSBURYS.CO.UK,RS114140510,DC-Sheen Lane Food & Consumables
Environment & Community Services Directorate,06/02/2024,73.32,MAILCHIMP,RN524455900,MarketingandCommunications Other Third Party Payments
Adult Social Services Directorate,06/02/2024,57.84,TESCO STORES,RS114240510,The Access Project Food & Consumables
Resources Directorate,06/02/2024,59.2,AMZNMKTPLACE,RR392546500,IT Service Miscellaneous Expenses
Resources Directorate,06/02/2024,52.49,AMAZON,RR392546500,IT Service Miscellaneous Expenses
Resources Directorate,06/02/2024,89.94,POSTURITE LTD,RR392546500,IT Service Miscellaneous Expenses
Chief Executives Directorate,07/02/2024,24,SKY DRY CLEANERS,RC376846500,Mayoralty Miscellaneous Expenses
Environment & Community Services Directorate,07/02/2024,106.55,ENRG TECH LTD,RN540040000,Libraries General Equipment
Chief Executives Directorate,07/02/2024,20,TFL OYSTER AUTO TOPUP,RC376446500,Business Support Miscellaneous Expenses
Housing & Regeneration Directorate,07/02/2024,19.82,AMAZON,RH419040200,SHAREDFACILITIESMANAGEMENT Materials
Adult Social Services Directorate,07/02/2024,127.6,TESCO STORES,RS114340510,DC - Woodville Centre Food & Consumables
Adult Social Services Directorate,07/02/2024,120,HIGH SPEED TRAINING,RS114146500,DC-Sheen Lane Miscellaneous Expenses
Environment & Community Services Directorate,07/02/2024,4.35,FACEBK,RN524542080,ExhibitionsandCollections Advertising / Publicity
Environment & Community Services Directorate,07/02/2024,483.95,WWW.GTECH.CO.UK,RN524240200,ArtsVolunteers Materials
Environment & Community Services Directorate,07/02/2024,149.64,FACEBK,RN524542080,ExhibitionsandCollections Advertising / Publicity
Environment & Community Services Directorate,08/02/2024,51.98,AMAZON,RN540442615,Electronic Services Hardware purchases
Chief Executives Directorate,08/02/2024,192,WWW.PATCH.WORK,RC376446500,Business Support Miscellaneous Expenses
Adult Social Services Directorate,08/02/2024,312.82,BIDFOOD,RS144240510,Supp Employ - Cafe Sunshine Food & Consumables
Adult Social Services Directorate,08/02/2024,74.07,AMAZON,RS114341000,"DC - Woodville Centre Clothing, Uniform & Laundry"
Adult Social Services Directorate,08/02/2024,20,OYSTER BUS AUTOLOAD,RS194331500,Directorate Business Support Travelling expenses
Adult Social Services Directorate,08/02/2024,20,OYSTER BUS AUTOLOAD,RS194331500,Directorate Business Support Travelling expenses
Adult Social Services Directorate,08/02/2024,20,OYSTER BUS AUTOLOAD,RS194331500,Directorate Business Support Travelling expenses
Adult Social Services Directorate,08/02/2024,20,OYSTER BUS AUTOLOAD,RS194331500,Directorate Business Support Travelling expenses
Environment & Community Services Directorate,08/02/2024,17.34,NEXTDAYCOFFEE.CO.UK,RN521340200,Weddings & Lettings Materials
Resources Directorate,08/02/2024,130.33,AMAZON,RR392546500,IT Service Miscellaneous Expenses
Resources Directorate,08/02/2024,52.49,AMAZON,RR392546500,IT Service Miscellaneous Expenses
Resources Directorate,08/02/2024,139.75,AMAZON,RR392546500,IT Service Miscellaneous Expenses
Environment & Community Services Directorate,09/02/2024,26.34,AMAZON.CO.UK ,RN540041520,Libraries General Stationery
Environment & Community Services Directorate,09/02/2024,14.84,AMAZON,RN540041520,Libraries General Stationery
Chief Executives Directorate,09/02/2024,20,TFL OYSTER AUTO TOPUP,RC376446500,Business Support Miscellaneous Expenses
Housing & Regeneration Directorate,09/02/2024,8.4,SHELL OAK LANE,RH420440510,Public Halls - York House Hall Food & Consumables
Adult Social Services Directorate,09/02/2024,88.47,TESCO STORES,RS144240510,Supp Employ - Cafe Sunshine Food & Consumables
Environment & Community Services Directorate,09/02/2024,40,OYSTER BUS AUTOLOAD,RN510031500,Development Management Travelling expenses
Chief Executives Directorate,09/02/2024,7.99,EVENTBRITE.COM ORG FEE,RC374354205,Community Engagement Community support
Adult Social Services Directorate,09/02/2024,25.88,AMZNMKTPLACE,RS195040000,Information and Projects Equipment
Adult Social Services Directorate,09/02/2024,20,OYSTER BUS AUTOLOAD,RS194331500,Directorate Business Support Travelling expenses
Adult Social Services Directorate,09/02/2024,20,TFL OYSTER AUTO TOPUP,RS194331500,Directorate Business Support Travelling expenses
Adult Social Services Directorate,09/02/2024,10,OYSTER BUS AUTOLOAD,RS194331500,Directorate Business Support Travelling expenses
Environment & Community Services Directorate,09/02/2024,572.4,ST JOHN AMBULANCE,RN524013100,ArtsSalaries Training
Environment & Community Services Directorate,09/02/2024,132,KRYSTAL  ,RN524455900,MarketingandCommunications Other Third Party Payments
Environment & Community Services Directorate,09/02/2024,40.77,AMZNMKTPLACE,RN521140510,Arts Infrastructure Food & Consumables
Resources Directorate,09/02/2024,52.49,AMZNMKTPLACE,RR392546500,IT Service Miscellaneous Expenses
Environment & Community Services Directorate,10/02/2024,8.99,AMAZON PRIME ,RN540041530,Libraries General Other Office Expenses
Adult Social Services Directorate,10/02/2024,3.25,POUNDLAND LTD ,RS144240510,Supp Employ - Cafe Sunshine Food & Consumables
Adult Social Services Directorate,11/02/2024,20,OYSTER BUS AUTOLOAD,RS194331500,Directorate Business Support Travelling expenses
Environment & Community Services Directorate,11/02/2024,23.98,ZOOM.US ,RN524455900,MarketingandCommunications Other Third Party Payments
Environment & Community Services Directorate,12/02/2024,79,APPLE.COM/UK,RN525142605,Sports General Application purchases
Housing & Regeneration Directorate,12/02/2024,9.84,AMZNBUSINESS,RH421041520,Fm(R) - General Stationery
Chief Executives Directorate,12/02/2024,700,FACEBK,RC374342080,Community Engagement Advertising / Publicity
Chief Executives Directorate,12/02/2024,700,FACEBK,RC375154205,Communications Team Community support
Environment & Community Services Directorate,12/02/2024,700,FACEBK,RN561155015,Parking Policy and Reviews CPZ Zone Extensions
Environment & Community Services Directorate,12/02/2024,700,FACEBK,RN563742490,MinorSchemes Other minor services
Adult Social Services Directorate,12/02/2024,700,FACEBK,RS371754130,Aspirations-Health Other PH Contracts
Adult Social Services Directorate,12/02/2024,12.6,AMAZON,RS114240000,The Access Project Equipment
Adult Social Services Directorate,12/02/2024,5.99,AMZNMKTPLACE,RS114240000,The Access Project Equipment
Adult Social Services Directorate,12/02/2024,16.95,AMAZON,RS114240000,The Access Project Equipment
Adult Social Services Directorate,12/02/2024,39.99,AMAZON,RS114240000,The Access Project Equipment
Adult Social Services Directorate,12/02/2024,45.98,AMAZON,RS114240000,The Access Project Equipment
Resources Directorate,12/02/2024,429,CURRYS BUSINESS,RR392546500,IT Service Miscellaneous Expenses
Environment & Community Services Directorate,13/02/2024,51,SP FLAVOURTOWN BAKER,RN540040510,Libraries General Food & Consumables
Environment & Community Services Directorate,13/02/2024,74.98,AMAZON,RN563740000,MinorSchemes Equipment
Chief Executives Directorate,13/02/2024,94.78,AMAZON,RC376446500,Business Support Miscellaneous Expenses
Adult Social Services Directorate,13/02/2024,24.94,AMAZON.CO.UK ,RS114340200,DC - Woodville Centre Materials
Adult Social Services Directorate,13/02/2024,36.37,AMAZON,RS114240000,The Access Project Equipment
Adult Social Services Directorate,13/02/2024,10.19,AMAZON,RS114240000,The Access Project Equipment
Resources Directorate,13/02/2024,"1,766.72",LENOVO UK GBP - ECOM,RR392546500,IT Service Miscellaneous Expenses
Resources Directorate,13/02/2024,18.97,AMAZON,RR392546500,IT Service Miscellaneous Expenses
Chief Executives Directorate,14/02/2024,87.57,MARKS&SPENCER PLC SACA,RC376846500,Mayoralty Miscellaneous Expenses
Environment & Community Services Directorate,14/02/2024,57,OYSTER ONLINE,RN540041530,Libraries General Other Office Expenses
Environment & Community Services Directorate,14/02/2024,50,OYSTER ONLINE,RN540041530,Libraries General Other Office Expenses
Environment & Community Services Directorate,14/02/2024,35,OYSTER ONLINE,RN540041530,Libraries General Other Office Expenses
Environment & Community Services Directorate,14/02/2024,40,OYSTER ONLINE,RN540041530,Libraries General Other Office Expenses
Environment & Community Services Directorate,14/02/2024,50,OYSTER ONLINE,RN540041530,Libraries General Other Office Expenses
Environment & Community Services Directorate,14/02/2024,45,OYSTER ONLINE,RN540041530,Libraries General Other Office Expenses
Environment & Community Services Directorate,14/02/2024,50,OYSTER ONLINE,RN540041530,Libraries General Other Office Expenses
Environment & Community Services Directorate,14/02/2024,29.16,AMAZON,RN540040000,Libraries General Equipment
Chief Executives Directorate,14/02/2024,20,OYSTER BUS AUTOLOAD,RC376446500,Business Support Miscellaneous Expenses
Adult Social Services Directorate,14/02/2024,17.38,AMZNMKTPLACE,RS114240000,The Access Project Equipment
Environment & Community Services Directorate,15/02/2024,6.5,SAINSBURYS ,RN540040510,Libraries General Food & Consumables
Environment & Community Services Directorate,15/02/2024,4.5,AMZNMKTPLACE,RN540040000,Libraries General Equipment
Chief Executives Directorate,15/02/2024,20,TFL OYSTER AUTO TOPUP,RC376446500,Business Support Miscellaneous Expenses
Adult Social Services Directorate,15/02/2024,18.85,ICELAND ,RS144240510,Supp Employ - Cafe Sunshine Food & Consumables
Adult Social Services Directorate,15/02/2024,397.64,BIDFOOD,RS144240510,Supp Employ - Cafe Sunshine Food & Consumables
Adult Social Services Directorate,15/02/2024,20,OYSTER BUS AUTOLOAD,RS194331500,Directorate Business Support Travelling expenses
Adult Social Services Directorate,15/02/2024,20,OYSTER BUS AUTOLOAD,RS194331500,Directorate Business Support Travelling expenses
Environment & Community Services Directorate,15/02/2024,4,LINKTREE  LINKTREE,RN524455900,MarketingandCommunications Other Third Party Payments
Adult Social Services Directorate,15/02/2024,140.49,TESCO STORES,RS114240510,The Access Project Food & Consumables
Chief Executives Directorate,16/02/2024,20,OYSTER BUS AUTOLOAD,RC376446500,Business Support Miscellaneous Expenses
Chief Executives Directorate,16/02/2024,39,MONDAY.COM,RC375146500,Communications Team Miscellaneous Expenses
Adult Social Services Directorate,16/02/2024,20,TFL OYSTER AUTO TOPUP,RS194331500,Directorate Business Support Travelling expenses
Adult Social Services Directorate,16/02/2024,20,OYSTER BUS AUTOLOAD,RS194331500,Directorate Business Support Travelling expenses
Adult Social Services Directorate,16/02/2024,20,OYSTER BUS AUTOLOAD,RS194331500,Directorate Business Support Travelling expenses
Environment & Community Services Directorate,16/02/2024,228.94,WWW.FAMILYARTS.CO.UK,RN524013100,ArtsSalaries Training
Environment & Community Services Directorate,16/02/2024,162,JUST GOOD FRAMES LIMIT,RN524540200,ExhibitionsandCollections Materials
Adult Social Services Directorate,16/02/2024,173.12,TRAINLINE,RS170231500,Reviews Team Travelling expenses
Chief Executives Directorate,17/02/2024,10,TFL OYSTER AUTO TOPUP,RC376446500,Business Support Miscellaneous Expenses
Environment & Community Services Directorate,17/02/2024,135,CALL PRINT,RN531040000,Pools On The Park Equipment
Adult Social Services Directorate,17/02/2024,290.18,BIDFOOD,RS144240510,Supp Employ - Cafe Sunshine Food & Consumables
Adult Social Services Directorate,17/02/2024,2.25,POUNDLAND LTD,RS144240200,Supp Employ - Cafe Sunshine Materials
Adult Social Services Directorate,17/02/2024,108.98,TESCO STORES,RS144240510,Supp Employ - Cafe Sunshine Food & Consumables
Adult Social Services Directorate,17/02/2024,20,OYSTER BUS AUTOLOAD,RS194331500,Directorate Business Support Travelling expenses
Adult Social Services Directorate,17/02/2024,20,OYSTER BUS AUTOLOAD,RS194331500,Directorate Business Support Travelling expenses
Adult Social Services Directorate,17/02/2024,20,OYSTER BUS AUTOLOAD,RS194331500,Directorate Business Support Travelling expenses
Chief Executives Directorate,18/02/2024,218.76,ADOBE SYSTEMS SOFTWARE,RC376446500,Business Support Miscellaneous Expenses
Environment & Community Services Directorate,18/02/2024,12.5,SAINSBURYS ,RN531040000,Pools On The Park Equipment
Adult Social Services Directorate,18/02/2024,10,OYSTER BUS AUTOLOAD,RS194331500,Directorate Business Support Travelling expenses
Adult Social Services Directorate,18/02/2024,4.99,TESCO SUBSCRIPTION,RS114240510,The Access Project Food & Consumables
Environment & Community Services Directorate,19/02/2024,"1,565.10",TROPHIESPLUSMEDALS,RN529043500,Registrars Conference Expenses
Environment & Community Services Directorate,19/02/2024,301.8,NEXTDAYCOFFEE.CO.UK,RN540040510,Libraries General Food & Consumables
Housing & Regeneration Directorate,19/02/2024,795.93,TRAVELODGE,RH900046500,HousingPcardholdingaccount Miscellaneous Expenses
Resources Directorate,19/02/2024,235.5,HMCTSLONDONCSE,RR381642020,Council Tax Legal & Court Fees
Resources Directorate,19/02/2024,15,HMCTS WESTLONDON,RR382142020,BusinessRates Legal & Court Fees
Housing & Regeneration Directorate,19/02/2024,47.34,AMAZON,RH421042490,Fm(R) - General Other minor services
Environment & Community Services Directorate,20/02/2024,40,OYSTER ONLINE,RN540041530,Libraries General Other Office Expenses
Housing & Regeneration Directorate,20/02/2024,400,LITTLESPOONCATERING,RH421042490,Fm(R) - General Other minor services
Housing & Regeneration Directorate,20/02/2024,70.81,AMZNMKTPLACE,RH421042490,Fm(R) - General Other minor services
Housing & Regeneration Directorate,20/02/2024,51.84,AMZNMKTPLACE,RH421042490,Fm(R) - General Other minor services
Adult Social Services Directorate,20/02/2024,10.15,ICELAND  TWICKENHAM,RS144240510,Supp Employ - Cafe Sunshine Food & Consumables
Adult Social Services Directorate,20/02/2024,12.4,TESCO STORES,RS114340510,DC - Woodville Centre Food & Consumables
Adult Social Services Directorate,20/02/2024,106.27,TRAINLINE,RS172331500,Teddington & Twick Comm Team Travelling expenses
Resources Directorate,20/02/2024,606.6,AMAZON,RR392546500,IT Service Miscellaneous Expenses
Chief Executives Directorate,21/02/2024,20,SUMUP   BREWERY MARKET,RC376846500,Mayoralty Miscellaneous Expenses
Environment & Community Services Directorate,21/02/2024,147.95,TROPHIESPLUSMEDALS,RN529043500,Registrars Conference Expenses
Environment & Community Services Directorate,21/02/2024,35,OYSTER ONLINE,RN540041530,Libraries General Other Office Expenses
Environment & Community Services Directorate,21/02/2024,12.99,ZOOM.US ,RN540442640,Electronic Services Software Maintenance
Environment & Community Services Directorate,21/02/2024,50,OYSTER ONLINE,RN540041530,Libraries General Other Office Expenses
Environment & Community Services Directorate,21/02/2024,57,OYSTER ONLINE,RN540041530,Libraries General Other Office Expenses
Environment & Community Services Directorate,21/02/2024,50,OYSTER ONLINE,RN540041530,Libraries General Other Office Expenses
Environment & Community Services Directorate,21/02/2024,52,OYSTER ONLINE,RN540041530,Libraries General Other Office Expenses
Environment & Community Services Directorate,21/02/2024,538.68,LIGNEUSPROD,RN524140100,CommercialandBusiness Furniture
Chief Executives Directorate,21/02/2024,20,TFL OYSTER AUTO TOPUP,RC376446500,Business Support Miscellaneous Expenses
Environment & Community Services Directorate,21/02/2024,159,TVLICENSING.CO.UK,RN532046500,Teddington Pool & Fitness Cent Miscellaneous Expenses
Housing & Regeneration Directorate,21/02/2024,440,SPICE UP,RH421042490,Fm(R) - General Other minor services
Housing & Regeneration Directorate,21/02/2024,68.25,AMZNMKTPLACE,RH421042490,Fm(R) - General Other minor services
Environment & Community Services Directorate,21/02/2024,10.98,CM  MUSICROOM.COM,RN540740200,Bibliographic Services Materials
Adult Social Services Directorate,21/02/2024,110.35,SAINSBURYS.CO.UK,RS114140510,DC-Sheen Lane Food & Consumables
Chief Executives Directorate,21/02/2024,12.28,SIMPLECAST.COM/BILL,RC375146500,Communications Team Miscellaneous Expenses
Adult Social Services Directorate,21/02/2024,20,OYSTER BUS AUTOLOAD,RS194331500,Directorate Business Support Travelling expenses
Adult Social Services Directorate,21/02/2024,20,OYSTER BUS AUTOLOAD,RS194331500,Directorate Business Support Travelling expenses
Environment & Community Services Directorate,21/02/2024,55.95,BUDGET HEADPHONES LIMI,RN540446500,Electronic Services Miscellaneous Expenses
Adult Social Services Directorate,21/02/2024,8.99,AMAZON PRIME ,RS114240200,The Access Project Materials
Chief Executives Directorate,22/02/2024,13.65,PP APEX PLUS CARS,RC376846500,Mayoralty Miscellaneous Expenses
Environment & Community Services Directorate,22/02/2024,259.45,BARRIERS DIRECT,RN540040000,Libraries General Equipment
Environment & Community Services Directorate,22/02/2024,72.45,COSTCO WHOLESAL,RN540040510,Libraries General Food & Consumables
Chief Executives Directorate,22/02/2024,205.73,FACEBK,RC376446500,Business Support Miscellaneous Expenses
Chief Executives Directorate,22/02/2024,20,TFL OYSTER AUTO TOPUP,RC376446500,Business Support Miscellaneous Expenses
Chief Executives Directorate,22/02/2024,20,OYSTER BUS AUTOLOAD,RC376446500,Business Support Miscellaneous Expenses
Environment & Community Services Directorate,22/02/2024,39.09,AMAZON,RN531040000,Pools On The Park Equipment
Adult Social Services Directorate,22/02/2024,8.03,AVANSAS.COM,RS114340200,DC - Woodville Centre Materials
Adult Social Services Directorate,22/02/2024,27.71,WWW.GOMPELS.CO.UK,RS114340200,DC - Woodville Centre Materials
Chief Executives Directorate,22/02/2024,700,FACEBK,RC374342080,Community Engagement Advertising / Publicity
Chief Executives Directorate,22/02/2024,700,FACEBK,RC375154205,Communications Team Community support
Environment & Community Services Directorate,22/02/2024,700,FACEBK,RN525146500,Sports General Miscellaneous Expenses
Environment & Community Services Directorate,22/02/2024,700,FACEBK,RN561146500,Parking Policy and Reviews Miscellaneous Expenses
Environment & Community Services Directorate,22/02/2024,700,FACEBK,RN563742490,MinorSchemes Other minor services
Adult Social Services Directorate,22/02/2024,700,FACEBK,RS371754130,Aspirations-Health Other PH Contracts
Environment & Community Services Directorate,22/02/2024,189.83,TRAINLINE,RN524013100,ArtsSalaries Training
Adult Social Services Directorate,22/02/2024,163.37,TESCO STORES,RS114240510,The Access Project Food & Consumables
Chief Executives Directorate,23/02/2024,20,TFL OYSTER AUTO TOPUP,RC376446500,Business Support Miscellaneous Expenses
Housing & Regeneration Directorate,23/02/2024,209.56,SPECIALISED CANVAS,RH421042490,Fm(R) - General Other minor services
Adult Social Services Directorate,23/02/2024,312.05,BIDFOOD,RS144240510,Supp Employ - Cafe Sunshine Food & Consumables
Adult Social Services Directorate,23/02/2024,16.06,AMAZON,RS114340200,DC - Woodville Centre Materials
Adult Social Services Directorate,23/02/2024,14.11,AMAZON.CO.UK ,RS114341000,"DC - Woodville Centre Clothing, Uniform & Laundry"
Environment & Community Services Directorate,23/02/2024,40,OYSTER BUS AUTOLOAD,RN510031500,Development Management Travelling expenses
Chief Executives Directorate,23/02/2024,19.99,EVENT LISTING FEE,RC374342080,Community Engagement Advertising / Publicity
Environment & Community Services Directorate,24/02/2024,99.99,CANVA  ,RN563744000,MinorSchemes Subscriptions
Adult Social Services Directorate,24/02/2024,184.58,TESCO STORES,RS144240510,Supp Employ - Cafe Sunshine Food & Consumables
Chief Executives Directorate,24/02/2024,78,ISTOCK.COM,RC375146500,Communications Team Miscellaneous Expenses
Adult Social Services Directorate,25/02/2024,20,TFL OYSTER AUTO TOPUP,RS194331500,Directorate Business Support Travelling expenses
Adult Social Services Directorate,25/02/2024,20,OYSTER BUS AUTOLOAD,RS194331500,Directorate Business Support Travelling expenses
Adult Social Services Directorate,25/02/2024,20,TFL OYSTER AUTO TOPUP,RS194331500,Directorate Business Support Travelling expenses
Resources Directorate,25/02/2024,84.83,AMAZON.CO.UK ,RR392546500,IT Service Miscellaneous Expenses
Resources Directorate,25/02/2024,219,AMAZON.CO.UK ,RR392546500,IT Service Miscellaneous Expenses
Resources Directorate,25/02/2024,60.44,AMAZON.CO.UK ,RR392546500,IT Service Miscellaneous Expenses
Chief Executives Directorate,26/02/2024,50.42,TEMU.COM,RC376846500,Mayoralty Miscellaneous Expenses
Environment & Community Services Directorate,26/02/2024,249.9,AMAZON,RN540442615,Electronic Services Hardware purchases
Chief Executives Directorate,26/02/2024,10.5,AMAZON,RC376446500,Business Support Miscellaneous Expenses
Chief Executives Directorate,26/02/2024,552,ASPIRE LEADERSHIP LTD,RC376446500,Business Support Miscellaneous Expenses
Chief Executives Directorate,26/02/2024,20,OYSTER BUS AUTOLOAD,RC376446500,Business Support Miscellaneous Expenses
Adult Social Services Directorate,26/02/2024,59.7,TESCO STORES,RS114340510,DC - Woodville Centre Food & Consumables
Chief Executives Directorate,27/02/2024,27,OYSTER ONLINE,RC376446500,Business Support Miscellaneous Expenses
Chief Executives Directorate,27/02/2024,590,UPFRONT,RC376446500,Business Support Miscellaneous Expenses
Chief Executives Directorate,27/02/2024,590,UPFRONT,RC376446500,Business Support Miscellaneous Expenses
Chief Executives Directorate,27/02/2024,175,UPFRONT,RC376446500,Business Support Miscellaneous Expenses
Chief Executives Directorate,27/02/2024,48,EVENT TKT ,RC376446500,Business Support Miscellaneous Expenses
Chief Executives Directorate,27/02/2024,48,EVENT TKT  ,RC376446500,Business Support Miscellaneous Expenses
Chief Executives Directorate,27/02/2024,766.32,PANELSCREENS LIMITED,RC376446500,Business Support Miscellaneous Expenses
Chief Executives Directorate,27/02/2024,44.67,AMAZON,RC376446500,Business Support Miscellaneous Expenses
Adult Social Services Directorate,27/02/2024,153.95,WWW.ARGOS.CO.UK,RS144240000,Supp Employ - Cafe Sunshine Equipment
Adult Social Services Directorate,27/02/2024,49,TESCO STORES,RS114340510,DC - Woodville Centre Food & Consumables
Chief Executives Directorate,28/02/2024,21,LBRUT INTERNET,RC376846500,Mayoralty Miscellaneous Expenses
Environment & Community Services Directorate,28/02/2024,489.24,THE WHISTLE FISH,RN540041520,Libraries General Stationery
Environment & Community Services Directorate,28/02/2024,15.99,AMZNMKTPLACE,RN540040000,Libraries General Equipment
Chief Executives Directorate,28/02/2024,4.9,SAINSBURYS ,RC376446500,Business Support Miscellaneous Expenses
Chief Executives Directorate,28/02/2024,199,THE MJ/HEMMING GROUP L,RC376446500,Business Support Miscellaneous Expenses
Chief Executives Directorate,28/02/2024,256.5,RAIL EUROPE  ,RC376446500,Business Support Miscellaneous Expenses
Housing & Regeneration Directorate,28/02/2024,420,LITTLESPOONCATERING,RH421042490,Fm(R) - General Other minor services
Housing & Regeneration Directorate,28/02/2024,24.99,AMZNMKTPLACE,RH421042490,Fm(R) - General Other minor services
Housing & Regeneration Directorate,28/02/2024,120.48,MRFLAG,RH421042490,Fm(R) - General Other minor services
Adult Social Services Directorate,28/02/2024,20,OYSTER BUS AUTOLOAD,RS194331500,Directorate Business Support Travelling expenses
Adult Social Services Directorate,28/02/2024,20,OYSTER BUS AUTOLOAD,RS194331500,Directorate Business Support Travelling expenses
Environment & Community Services Directorate,28/02/2024,15.1,TRAINLINE,RN524013100,ArtsSalaries Training
Environment & Community Services Directorate,29/02/2024,374.85,AMAZON,RN540442615,Electronic Services Hardware purchases
Environment & Community Services Directorate,29/02/2024,193.38,NEXTDAYCOFFEE.CO.UK,RN540040510,Libraries General Food & Consumables
Chief Executives Directorate,29/02/2024,20,OYSTER BUS AUTOLOAD,RC376446500,Business Support Miscellaneous Expenses
Housing & Regeneration Directorate,29/02/2024,60,BRIDEBOOK,RH421042490,Fm(R) - General Other minor services
Housing & Regeneration Directorate,29/02/2024,74.98,AMZNBUSINESS,RH421042490,Fm(R) - General Other minor services
Housing & Regeneration Directorate,29/02/2024,74.4,NEWTON NEWTON FLAG & B,RH421042490,Fm(R) - General Other minor services
Adult Social Services Directorate,29/02/2024,163,COFFEEBAY,RS144240510,Supp Employ - Cafe Sunshine Food & Consumables
Environment & Community Services Directorate,29/02/2024,12.5,DVLA VEHICLE TAX,RN557046500,Direct Services Miscellaneous Expenses
Chief Executives Directorate,29/02/2024,362.02,FACEBK,RC374342080,Community Engagement Advertising / Publicity
Chief Executives Directorate,29/02/2024,362.02,FACEBK,RC375154205,Communications Team Community support
Environment & Community Services Directorate,29/02/2024,362.02,FACEBK,RN525146500,Sports General Miscellaneous Expenses
Adult Social Services Directorate,29/02/2024,18.55,TRAINLINE,RS172231500,Richmond & Barnes Comm Team Travelling expenses
Adult Social Services Directorate,29/02/2024,20,OYSTER BUS AUTOLOAD,RS194331500,Directorate Business Support Travelling expenses
Adult Social Services Directorate,29/02/2024,20,OYSTER BUS AUTOLOAD,RS194331500,Directorate Business Support Travelling expenses
Adult Social Services Directorate,29/02/2024,20,OYSTER BUS AUTOLOAD,RS194331500,Directorate Business Support Travelling expenses
Adult Social Services Directorate,29/02/2024,20,OYSTER BUS AUTOLOAD,RS194331500,Directorate Business Support Travelling expenses
Adult Social Services Directorate,29/02/2024,20,OYSTER BUS AUTOLOAD,RS194331500,Directorate Business Support Travelling expenses
Environment & Community Services Directorate,29/02/2024,61.5,KITE PACKAGING LIMITED,RN524640200,LearningandEngagement Materials
Adult Social Services Directorate,29/02/2024,168.5,TESCO STORES,RS114240510,The Access Project Food & Consumables
Resources Directorate,29/02/2024,"1,296.00",THRIIVER LIMITED,RR392546500,IT Service Miscellaneous Expenses
Environment & Community Services Directorate,01/03/2024,94.33,AMZNMKTPLACE,RN540040000,Libraries General Equipment
Environment & Community Services Directorate,01/03/2024,35.88,SP DUKES VALLEY,RN540040000,Libraries General Equipment
Chief Executives Directorate,01/03/2024,96.58,VIKING OFFICE UK LIMIT,RC376446500,Business Support Miscellaneous Expenses
Chief Executives Directorate,01/03/2024,94.98,AMAZON,RC376446500,Business Support Miscellaneous Expenses
Chief Executives Directorate,01/03/2024,116.57,GOOGLE ADS,RC376446500,Business Support Miscellaneous Expenses
Chief Executives Directorate,01/03/2024,20,TFL OYSTER AUTO TOPUP,RC376446500,Business Support Miscellaneous Expenses
Chief Executives Directorate,01/03/2024,20,OYSTER BUS AUTOLOAD,RC376446500,Business Support Miscellaneous Expenses
Chief Executives Directorate,01/03/2024,35.56,AMAZON,RC376446500,Business Support Miscellaneous Expenses
Housing & Regeneration Directorate,01/03/2024,371,CHARTERED INSTITUTE OF,RH421042490,Fm(R) - General Other minor services
Adult Social Services Directorate,01/03/2024,251.63,BIDFOOD,RS144240510,Supp Employ - Cafe Sunshine Food & Consumables
Adult Social Services Directorate,01/03/2024,138.99,WP ALZ STORE UK,RS195040000,Information and Projects Equipment
Adult Social Services Directorate,01/03/2024,20,OYSTER BUS AUTOLOAD,RS194331500,Directorate Business Support Travelling expenses
Adult Social Services Directorate,01/03/2024,20.99,AMAZON,RS114240000,The Access Project Equipment
Environment & Community Services Directorate,02/03/2024,25.5,SP FLAVOURTOWN BAKER,RN540040510,Libraries General Food & Consumables
Environment & Community Services Directorate,02/03/2024,40,MARKS&SPENCER PLC,RN540040510,Libraries General Food & Consumables
Chief Executives Directorate,02/03/2024,78.75,AMAZON,RC376446500,Business Support Miscellaneous Expenses
Adult Social Services Directorate,02/03/2024,3,WH SMITH TWICKENHAM,RS144240200,Supp Employ - Cafe Sunshine Materials
Adult Social Services Directorate,02/03/2024,6.99,WH SMITH TWICKENHAM,RS144240200,Supp Employ - Cafe Sunshine Materials
Adult Social Services Directorate,02/03/2024,114.37,TESCO STORES,RS144240510,Supp Employ - Cafe Sunshine Food & Consumables
Environment & Community Services Directorate,02/03/2024,40,TFL OYSTER AUTO TOPUP,RN562031500,Engineering Servs - Highways Travelling expenses
Adult Social Services Directorate,02/03/2024,153.99,AMAZON.CO.UK ,RS195040000,Information and Projects Equipment
Adult Social Services Directorate,02/03/2024,20,OYSTER BUS AUTOLOAD,RS194331500,Directorate Business Support Travelling expenses
Chief Executives Directorate,03/03/2024,96.68,AMAZON.CO.UK ,RC376446500,Business Support Miscellaneous Expenses
Chief Executives Directorate,03/03/2024,20,TFL OYSTER AUTO TOPUP,RC376446500,Business Support Miscellaneous Expenses
Environment & Community Services Directorate,03/03/2024,58.65,AMZNMKTPLACE,RN532040000,Teddington Pool & Fitness Cent Equipment
Chief Executives Directorate,04/03/2024,65.88,FLICKR.COM,RC376446500,Business Support Miscellaneous Expenses
Adult Social Services Directorate,04/03/2024,153.32,AVANSAS.COM,RS114340510,DC - Woodville Centre Food & Consumables
Adult Social Services Directorate,04/03/2024,138.94,WWW.ALZPRODUCTS.CO.UK,RS195040000,Information and Projects Equipment
Adult Social Services Directorate,04/03/2024,19.24,AMAZON,RS195040000,Information and Projects Equipment
Environment & Community Services Directorate,04/03/2024,40,MARKS&SPENCER PLC,RN540040510,Libraries General Food & Consumables
Adult Social Services Directorate,05/03/2024,58,TESCO STORES,RS114340510,DC - Woodville Centre Food & Consumables
Adult Social Services Directorate,05/03/2024,29.98,AMAZON.CO.UK ,RS195040000,Information and Projects Equipment
Environment & Community Services Directorate,05/03/2024,3.9,SAINSBURYS ,RN540041520,Libraries General Stationery
Adult Social Services Directorate,05/03/2024,65,AMAZON,RS114223500,The Access Project Cleaning
Resources Directorate,05/03/2024,519,CURRYS BUSINESS,RR392546500,IT Service Miscellaneous Expenses
Chief Executives Directorate,06/03/2024,74,POUNDLAND LTD ,RC376846500,Mayoralty Miscellaneous Expenses
Housing & Regeneration Directorate,06/03/2024,4.2,SHELL OAK LANE,RH421042490,Fm(R) - General Other minor services
Adult Social Services Directorate,06/03/2024,128,COFFEEBAY,RS144240510,Supp Employ - Cafe Sunshine Food & Consumables
Adult Social Services Directorate,06/03/2024,10.84,ICELAND ,RS144240510,Supp Employ - Cafe Sunshine Food & Consumables
Adult Social Services Directorate,06/03/2024,19.01,FINDEL EDUCATION,RS114340200,DC - Woodville Centre Materials
Adult Social Services Directorate,06/03/2024,23.95,DUNELM SOFTFURNISHINGS,RS114340200,DC - Woodville Centre Materials
Adult Social Services Directorate,06/03/2024,20,OYSTER BUS AUTOLOAD,RS194331500,Directorate Business Support Travelling expenses
Environment & Community Services Directorate,06/03/2024,264.4,TILLROLLSTHERMAL,RN540041520,Libraries General Stationery
Environment & Community Services Directorate,06/03/2024,73.13,MAILCHIMP,RN524455900,MarketingandCommunications Other Third Party Payments
Resources Directorate,06/03/2024,60.98,AMAZON.CO.UK ,RR392546500,IT Service Miscellaneous Expenses
Resources Directorate,06/03/2024,122.53,AMAZON.CO.UK ,RR392546500,IT Service Miscellaneous Expenses
Chief Executives Directorate,07/03/2024,35,THEWORKS,RC376846500,Mayoralty Miscellaneous Expenses
Chief Executives Directorate,07/03/2024,20,TFL OYSTER AUTO TOPUP,RC376446500,Business Support Miscellaneous Expenses
Chief Executives Directorate,07/03/2024,37,OYSTER ONLINE,RC376446500,Business Support Miscellaneous Expenses
Chief Executives Directorate,07/03/2024,37,OYSTER ONLINE,RC376446500,Business Support Miscellaneous Expenses
Chief Executives Directorate,07/03/2024,37,OYSTER ONLINE,RC376446500,Business Support Miscellaneous Expenses
Chief Executives Directorate,07/03/2024,37,OYSTER ONLINE,RC376446500,Business Support Miscellaneous Expenses
Chief Executives Directorate,07/03/2024,37,OYSTER ONLINE,RC376446500,Business Support Miscellaneous Expenses
Chief Executives Directorate,07/03/2024,37,OYSTER ONLINE,RC376446500,Business Support Miscellaneous Expenses
Chief Executives Directorate,07/03/2024,37,OYSTER ONLINE,RC376446500,Business Support Miscellaneous Expenses
Chief Executives Directorate,07/03/2024,37,OYSTER ONLINE,RC376446500,Business Support Miscellaneous Expenses
Chief Executives Directorate,07/03/2024,19,OYSTER ONLINE,RC376446500,Business Support Miscellaneous Expenses
Housing & Regeneration Directorate,07/03/2024,144.59,MIRRORFIT LTD,RH421042490,Fm(R) - General Other minor services
Housing & Regeneration Directorate,07/03/2024,81.09,WWW.MIW.CO.UK,RH421042490,Fm(R) - General Other minor services
Adult Social Services Directorate,07/03/2024,20,OYSTER BUS AUTOLOAD,RS194331500,Directorate Business Support Travelling expenses
Adult Social Services Directorate,07/03/2024,20,OYSTER BUS AUTOLOAD,RS194331500,Directorate Business Support Travelling expenses
Adult Social Services Directorate,07/03/2024,20,TFL OYSTER AUTO TOPUP,RS194331500,Directorate Business Support Travelling expenses
Adult Social Services Directorate,07/03/2024,10,OYSTER BUS AUTOLOAD,RS194331500,Directorate Business Support Travelling expenses
Environment & Community Services Directorate,07/03/2024,23.98,AMZNMKTPLACE,RN540040000,Libraries General Equipment
Adult Social Services Directorate,07/03/2024,192.62,TESCO STORES,RS114240510,The Access Project Food & Consumables
Resources Directorate,07/03/2024,79.99,CCL COMPUTERS LTD,RR392546500,IT Service Miscellaneous Expenses
Chief Executives Directorate,08/03/2024,106.95,AMAZON,RC376446500,Business Support Miscellaneous Expenses
Chief Executives Directorate,08/03/2024,600,SLI DO,RC376446500,Business Support Miscellaneous Expenses
Chief Executives Directorate,08/03/2024,20,OYSTER BUS AUTOLOAD,RC376446500,Business Support Miscellaneous Expenses
Adult Social Services Directorate,08/03/2024,15.95,SP YORKSHIRE TRADING,RS114340200,DC - Woodville Centre Materials
Adult Social Services Directorate,08/03/2024,43.08,WWW.ROMPALIMITED.COM,RS114340200,DC - Woodville Centre Materials
Adult Social Services Directorate,08/03/2024,20,OYSTER BUS AUTOLOAD,RS194331500,Directorate Business Support Travelling expenses
Adult Social Services Directorate,08/03/2024,20,OYSTER BUS AUTOLOAD,RS194331500,Directorate Business Support Travelling expenses
Adult Social Services Directorate,08/03/2024,20,OYSTER BUS AUTOLOAD,RS194331500,Directorate Business Support Travelling expenses
Adult Social Services Directorate,08/03/2024,20,OYSTER BUS AUTOLOAD,RS194331500,Directorate Business Support Travelling expenses
Environment & Community Services Directorate,08/03/2024,144.91,WWW.BURGONANDBALL.COM,RN524240200,ArtsVolunteers Materials
Adult Social Services Directorate,08/03/2024,4.35,TESCO STORES,RS114240510,The Access Project Food & Consumables
Adult Social Services Directorate,09/03/2024,273.51,BIDFOOD,RS144240510,Supp Employ - Cafe Sunshine Food & Consumables
Adult Social Services Directorate,09/03/2024,170.2,TESCO STORES,RS144240510,Supp Employ - Cafe Sunshine Food & Consumables
Environment & Community Services Directorate,09/03/2024,40,OYSTER BUS AUTOLOAD,RN510031500,Development Management Travelling expenses
Adult Social Services Directorate,09/03/2024,20,TFL OYSTER AUTO TOPUP,RS194331500,Directorate Business Support Travelling expenses
Adult Social Services Directorate,09/03/2024,20,OYSTER BUS AUTOLOAD,RS194331500,Directorate Business Support Travelling expenses
Adult Social Services Directorate,09/03/2024,20,OYSTER BUS AUTOLOAD,RS194331500,Directorate Business Support Travelling expenses
Environment & Community Services Directorate,09/03/2024,223.65,AMAZON,RN521140000,Arts Infrastructure Equipment
Environment & Community Services Directorate,10/03/2024,8.99,AMAZON PRIME ,RN540041530,Libraries General Other Office Expenses
Adult Social Services Directorate,10/03/2024,10,OYSTER BUS AUTOLOAD,RS194331500,Directorate Business Support Travelling expenses
Adult Social Services Directorate,10/03/2024,20,TFL OYSTER AUTO TOPUP,RS194331500,Directorate Business Support Travelling expenses
Adult Social Services Directorate,10/03/2024,20,OYSTER BUS AUTOLOAD,RS194331500,Directorate Business Support Travelling expenses
Adult Social Services Directorate,10/03/2024,27.99,AMAZON,RS195040000,Information and Projects Equipment
Resources Directorate,10/03/2024,148.38,AMAZON,RR392546500,IT Service Miscellaneous Expenses
Resources Directorate,10/03/2024,86.5,AMAZON,RR392546500,IT Service Miscellaneous Expenses
Chief Executives Directorate,11/03/2024,48.45,MARKS&SPENCER PLC SACA,RC376846500,Mayoralty Miscellaneous Expenses
Adult Social Services Directorate,11/03/2024,157.32,SAINSBURYS.CO.UK,RS114140510,DC-Sheen Lane Food & Consumables
Environment & Community Services Directorate,11/03/2024,23.98,ZOOM.US ,RN524455900,MarketingandCommunications Other Third Party Payments
Adult Social Services Directorate,11/03/2024,6.99,HSCTRAINING,RS114213100,The Access Project Training
Environment & Community Services Directorate,12/03/2024,159,TVLICENSING.CO.UK,RN540046500,Libraries General Miscellaneous Expenses
Environment & Community Services Directorate,12/03/2024,159,TVLICENSING.CO.UK,RN540046500,Libraries General Miscellaneous Expenses
Environment & Community Services Directorate,12/03/2024,9.75,TESCO METRO ,RN540040510,Libraries General Food & Consumables
Environment & Community Services Directorate,12/03/2024,6.5,SAINSBURYS ,RN540046500,Libraries General Miscellaneous Expenses
Chief Executives Directorate,12/03/2024,20,OYSTER ONLINE,RC376446500,Business Support Miscellaneous Expenses
Chief Executives Directorate,12/03/2024,20,OYSTER ONLINE,RC376446500,Business Support Miscellaneous Expenses
Environment & Community Services Directorate,12/03/2024,159,TVLICENSING.CO.UK,RN533146500,Shene Sports & Fitness Centre Miscellaneous Expenses
Housing & Regeneration Directorate,12/03/2024,12.88,AMAZON,RH421041520,Fm(R) - General Stationery
Environment & Community Services Directorate,13/03/2024,90,TRP7 LTD,RN521120010,Arts Infrastructure Property Maintenance
Chief Executives Directorate,13/03/2024,118,VICTOR'S BERLIN MOTO,RC376446500,Business Support Miscellaneous Expenses
Housing & Regeneration Directorate,13/03/2024,113.82,AMAZON,RH420440510,Public Halls - York House Hall Food & Consumables
Resources Directorate,13/03/2024,106.02,VERSAPAK INTERNATIONAL,RR392346500,Accountancy Miscellaneous Expenses
Adult Social Services Directorate,13/03/2024,20,OYSTER BUS AUTOLOAD,RS194331500,Directorate Business Support Travelling expenses
Adult Social Services Directorate,13/03/2024,21.99,AMAZON,RS114240510,The Access Project Food & Consumables
Adult Social Services Directorate,13/03/2024,65,AMAZON,RS114223500,The Access Project Cleaning
Adult Social Services Directorate,13/03/2024,21.99,AMZNMKTPLACE,RS114240510,The Access Project Food & Consumables
Chief Executives Directorate,14/03/2024,62.9,MARKS&SPENCER PLC SACA,RC376846500,Mayoralty Miscellaneous Expenses
Chief Executives Directorate,14/03/2024,37,WAITROSE,RC376846500,Mayoralty Miscellaneous Expenses
Chief Executives Directorate,14/03/2024,20,TFL OYSTER AUTO TOPUP,RC376446500,Business Support Miscellaneous Expenses
Chief Executives Directorate,14/03/2024,20,TFL OYSTER AUTO TOPUP,RC376446500,Business Support Miscellaneous Expenses
Chief Executives Directorate,14/03/2024,20,OYSTER BUS AUTOLOAD,RC376446500,Business Support Miscellaneous Expenses
Chief Executives Directorate,14/03/2024,10,OYSTER BUS AUTOLOAD,RC376446500,Business Support Miscellaneous Expenses
Housing & Regeneration Directorate,14/03/2024,154.72,AMAZON,RH420440510,Public Halls - York House Hall Food & Consumables
Housing & Regeneration Directorate,14/03/2024,22.99,AMAZON,RH421041520,Fm(R) - General Stationery
Housing & Regeneration Directorate,14/03/2024,3.65,SHELL OAK LANE,RH420440510,Public Halls - York House Hall Food & Consumables
Housing & Regeneration Directorate,14/03/2024,113.94,AMAZON,RH420440510,Public Halls - York House Hall Food & Consumables
Housing & Regeneration Directorate,14/03/2024,527.99,WWW.SCREWFIX.COM,RH421041520,Fm(R) - General Stationery
Adult Social Services Directorate,14/03/2024,57.5,TESCO STORES,RS114340510,DC - Woodville Centre Food & Consumables
Adult Social Services Directorate,14/03/2024,20,TFL OYSTER AUTO TOPUP,RS194331500,Directorate Business Support Travelling expenses
Adult Social Services Directorate,14/03/2024,20,OYSTER BUS AUTOLOAD,RS194331500,Directorate Business Support Travelling expenses
Adult Social Services Directorate,14/03/2024,115.9,TESCO STORES,RS114240510,The Access Project Food & Consumables
Chief Executives Directorate,15/03/2024,11.75,POUNDLAND LTD ,RC376846500,Mayoralty Miscellaneous Expenses
Chief Executives Directorate,15/03/2024,1,THEWORKS,RC376846500,Mayoralty Miscellaneous Expenses
Environment & Community Services Directorate,15/03/2024,153.62,ADVANCED MOULDS LTD,RN540040100,Libraries General Furniture
Environment & Community Services Directorate,15/03/2024,600,HILTI (GT. BRITAIN) LI,RN525046500,Sports Development Miscellaneous Expenses
Housing & Regeneration Directorate,15/03/2024,11,RICHMOND,RH421041520,Fm(R) - General Stationery
Housing & Regeneration Directorate,15/03/2024,74.52,AMZNBUSINESS,RH421041520,Fm(R) - General Stationery
Housing & Regeneration Directorate,15/03/2024,49.68,AMZNBUSINESS,RH421041520,Fm(R) - General Stationery
Housing & Regeneration Directorate,15/03/2024,164.9,AMZNBUSINESS,RH421041520,Fm(R) - General Stationery
Adult Social Services Directorate,15/03/2024,68.26,VIKING,RS114341520,DC - Woodville Centre Stationery
Adult Social Services Directorate,15/03/2024,15.65,TESCO STORES,RS150192153,Mental Health - Commissioning Miscellaneous Income
Adult Social Services Directorate,15/03/2024,20,OYSTER BUS AUTOLOAD,RS194331500,Directorate Business Support Travelling expenses
Adult Social Services Directorate,15/03/2024,20,OYSTER BUS AUTOLOAD,RS194331500,Directorate Business Support Travelling expenses
Adult Social Services Directorate,15/03/2024,20,OYSTER BUS AUTOLOAD,RS194331500,Directorate Business Support Travelling expenses
Adult Social Services Directorate,15/03/2024,20,TFL OYSTER AUTO TOPUP,RS194331500,Directorate Business Support Travelling expenses
Environment & Community Services Directorate,15/03/2024,4,LINKTREE  LINKTREE,RN524455900,MarketingandCommunications Other Third Party Payments
Adult Social Services Directorate,15/03/2024,74.99,AMAZON,RS114240000,The Access Project Equipment
Housing & Regeneration Directorate,16/03/2024,32.99,AMZNBUSINESS,RH421041520,Fm(R) - General Stationery
Housing & Regeneration Directorate,16/03/2024,32.99,AMZNBUSINESS,RH421041520,Fm(R) - General Stationery
Housing & Regeneration Directorate,16/03/2024,32.99,AMZNBUSINESS,RH421041520,Fm(R) - General Stationery
Adult Social Services Directorate,16/03/2024,161.18,TESCO STORES,RS144240510,Supp Employ - Cafe Sunshine Food & Consumables
Chief Executives Directorate,16/03/2024,39,MONDAY.COM,RC375146500,Communications Team Miscellaneous Expenses
Adult Social Services Directorate,16/03/2024,20,OYSTER BUS AUTOLOAD,RS194331500,Directorate Business Support Travelling expenses
Chief Executives Directorate,17/03/2024,500,GOOGLE ADS,RC376446500,Business Support Miscellaneous Expenses
Chief Executives Directorate,17/03/2024,20,TFL OYSTER AUTO TOPUP,RC376446500,Business Support Miscellaneous Expenses
Environment & Community Services Directorate,17/03/2024,61.94,AMAZON.CO.UK ,RN525046500,Sports Development Miscellaneous Expenses
Adult Social Services Directorate,17/03/2024,20,OYSTER BUS AUTOLOAD,RS194331500,Directorate Business Support Travelling expenses
Environment & Community Services Directorate,18/03/2024,159,TVLICENSING.CO.UK,RN540041530,Libraries General Other Office Expenses
Environment & Community Services Directorate,18/03/2024,159,TVLICENSING.CO.UK,RN540041530,Libraries General Other Office Expenses
Environment & Community Services Directorate,18/03/2024,159,TVLICENSING.CO.UK,RN540041530,Libraries General Other Office Expenses
Environment & Community Services Directorate,18/03/2024,28.7,AMAZON,RN540040000,Libraries General Equipment
Housing & Regeneration Directorate,18/03/2024,27.98,AMAZON,RH421041520,Fm(R) - General Stationery
Adult Social Services Directorate,18/03/2024,360.88,BIDFOOD,RS144240510,Supp Employ - Cafe Sunshine Food & Consumables
Adult Social Services Directorate,18/03/2024,43.52,TESCO STORES,RS144240510,Supp Employ - Cafe Sunshine Food & Consumables
Housing & Regeneration Directorate,18/03/2024,858.09,AMAZON,RH900046500,HousingPcardholdingaccount Miscellaneous Expenses
Adult Social Services Directorate,18/03/2024,4.95,AMAZON,RS114240000,The Access Project Equipment
Adult Social Services Directorate,18/03/2024,4.99,TESCO SUBSCRIPTION,RS114240510,The Access Project Food & Consumables
Environment & Community Services Directorate,19/03/2024,159,TVLICENSING.CO.UK,RN540041530,Libraries General Other Office Expenses
Environment & Community Services Directorate,19/03/2024,159,TVLICENSING.CO.UK,RN540041530,Libraries General Other Office Expenses
Environment & Community Services Directorate,19/03/2024,159,TVLICENSING.CO.UK,RN540041530,Libraries General Other Office Expenses
Environment & Community Services Directorate,19/03/2024,712.22,NEXTDAYCOFFEE.CO.UK,RN540040510,Libraries General Food & Consumables
Housing & Regeneration Directorate,19/03/2024,6.3,SHELL OAK LANE,RH420440510,Public Halls - York House Hall Food & Consumables
Housing & Regeneration Directorate,19/03/2024,79.9,AMAZON,RH421041520,Fm(R) - General Stationery
Resources Directorate,19/03/2024,77,AMAZON,RR392546500,IT Service Miscellaneous Expenses
Chief Executives Directorate,20/03/2024,20,RICHMOND,RC376846500,Mayoralty Miscellaneous Expenses
Chief Executives Directorate,20/03/2024,20,TFL OYSTER AUTO TOPUP,RC376446500,Business Support Miscellaneous Expenses
Housing & Regeneration Directorate,20/03/2024,23.7,AMAZON,RH420440510,Public Halls - York House Hall Food & Consumables
Housing & Regeneration Directorate,20/03/2024,13.5,AMAZON,RH420440510,Public Halls - York House Hall Food & Consumables
Housing & Regeneration Directorate,20/03/2024,16.96,AMAZON,RH420440510,Public Halls - York House Hall Food & Consumables
Housing & Regeneration Directorate,20/03/2024,31.82,AMAZON,RH421041520,Fm(R) - General Stationery
Housing & Regeneration Directorate,20/03/2024,31.82,AMAZON,RH421041520,Fm(R) - General Stationery
Housing & Regeneration Directorate,20/03/2024,31.82,AMAZON,RH421041520,Fm(R) - General Stationery
Housing & Regeneration Directorate,20/03/2024,155.29,AMAZON,RH420440510,Public Halls - York House Hall Food & Consumables
Housing & Regeneration Directorate,20/03/2024,31.82,AMZNMKTPLACE,RH421041520,Fm(R) - General Stationery
Housing & Regeneration Directorate,20/03/2024,31.82,AMAZON,RH421041520,Fm(R) - General Stationery
Housing & Regeneration Directorate,20/03/2024,41.34,AMAZON,RH420440510,Public Halls - York House Hall Food & Consumables
Housing & Regeneration Directorate,20/03/2024,74.98,AMAZON,RH420440510,Public Halls - York House Hall Food & Consumables
Housing & Regeneration Directorate,20/03/2024,59.97,AMAZON,RH420440510,Public Halls - York House Hall Food & Consumables
Adult Social Services Directorate,20/03/2024,240,TWICKENHAM GUESTHOUSE,RS172346500,Teddington & Twick Comm Team Miscellaneous Expenses
Resources Directorate,20/03/2024,459.8,AMAZON,RR392546500,IT Service Miscellaneous Expenses
Resources Directorate,20/03/2024,142.96,AMAZON.CO.UK ,RR392546500,IT Service Miscellaneous Expenses
Environment & Community Services Directorate,21/03/2024,12.99,ZOOM.US,RN540442640,Electronic Services Software Maintenance
Environment & Community Services Directorate,21/03/2024,28,POUNDLAND LTD ,RN563746500,MinorSchemes Miscellaneous Expenses
Environment & Community Services Directorate,21/03/2024,2,THEWORKS,RN563746500,MinorSchemes Miscellaneous Expenses
Chief Executives Directorate,21/03/2024,20,OYSTER BUS AUTOLOAD,RC376446500,Business Support Miscellaneous Expenses
Chief Executives Directorate,21/03/2024,20,TFL OYSTER AUTO TOPUP,RC376446500,Business Support Miscellaneous Expenses
Chief Executives Directorate,21/03/2024,20,TFL OYSTER AUTO TOPUP,RC376446500,Business Support Miscellaneous Expenses
Chief Executives Directorate,21/03/2024,20,TFL OYSTER AUTO TOPUP,RC376446500,Business Support Miscellaneous Expenses
Housing & Regeneration Directorate,21/03/2024,6.89,WWW.SCREWFIX.COM,RH421041520,Fm(R) - General Stationery
Housing & Regeneration Directorate,21/03/2024,27.99,AMZNBUSINESS,RH421041520,Fm(R) - General Stationery
Housing & Regeneration Directorate,21/03/2024,27.99,AMZNBUSINESS,RH421041520,Fm(R) - General Stationery
Housing & Regeneration Directorate,21/03/2024,27.99,AMZNBUSINESS,RH421041520,Fm(R) - General Stationery
Housing & Regeneration Directorate,21/03/2024,27.99,AMZNBUSINESS,RH421041520,Fm(R) - General Stationery
Housing & Regeneration Directorate,21/03/2024,27.99,AMZNBUSINESS,RH421041520,Fm(R) - General Stationery
Housing & Regeneration Directorate,21/03/2024,23.14,AMZNBUSINESS,RH420440510,Public Halls - York House Hall Food & Consumables
Housing & Regeneration Directorate,21/03/2024,23.14,AMZNBUSINESS,RH420440510,Public Halls - York House Hall Food & Consumables
Adult Social Services Directorate,21/03/2024,8.8,ICELAND ,RS144240510,Supp Employ - Cafe Sunshine Food & Consumables
Chief Executives Directorate,21/03/2024,12.18,SIMPLECAST.COM/BILL,RC375146500,Communications Team Miscellaneous Expenses
Adult Social Services Directorate,21/03/2024,20,OYSTER BUS AUTOLOAD,RS194331500,Directorate Business Support Travelling expenses
Adult Social Services Directorate,21/03/2024,20,OYSTER BUS AUTOLOAD,RS194331500,Directorate Business Support Travelling expenses
Adult Social Services Directorate,21/03/2024,8.99,AMAZON PRIME ,RS114240200,The Access Project Materials
Adult Social Services Directorate,21/03/2024,100.01,TESCO STORES,RS114240510,The Access Project Food & Consumables
Environment & Community Services Directorate,22/03/2024,5.2,SAINSBURYS,RN540046500,Libraries General Miscellaneous Expenses
Chief Executives Directorate,22/03/2024,100.01,FACEBK,RC376446500,Business Support Miscellaneous Expenses
Chief Executives Directorate,22/03/2024,20,OYSTER BUS AUTOLOAD,RC376446500,Business Support Miscellaneous Expenses
Housing & Regeneration Directorate,22/03/2024,115,AMZNBUSINESS,RH421041520,Fm(R) - General Stationery
Adult Social Services Directorate,22/03/2024,128,COFFEEBAY,RS144240510,Supp Employ - Cafe Sunshine Food & Consumables
Adult Social Services Directorate,22/03/2024,14.7,POUNDLAND LTD ,RS144240200,Supp Employ - Cafe Sunshine Materials
Adult Social Services Directorate,22/03/2024,58.75,SAFETY SIGNS 4 LESS,RS114340200,DC - Woodville Centre Materials
Environment & Community Services Directorate,22/03/2024,40,TFL OYSTER AUTO TOPUP,RN535031500,Waste & Street Cleansing Man Travelling expenses
Adult Social Services Directorate,22/03/2024,20,OYSTER BUS AUTOLOAD,RS194331500,Directorate Business Support Travelling expenses
Adult Social Services Directorate,22/03/2024,20,OYSTER BUS AUTOLOAD,RS194331500,Directorate Business Support Travelling expenses
Adult Social Services Directorate,22/03/2024,20,OYSTER BUS AUTOLOAD,RS194331500,Directorate Business Support Travelling expenses
Adult Social Services Directorate,22/03/2024,170,TWICKENHAM GUESTHOUSE,RS172346500,Teddington & Twick Comm Team Miscellaneous Expenses
Adult Social Services Directorate,23/03/2024,319.31,BIDFOOD,RS144240510,Supp Employ - Cafe Sunshine Food & Consumables
Adult Social Services Directorate,23/03/2024,133.69,TESCO STORES,RS144240510,Supp Employ - Cafe Sunshine Food & Consumables
Adult Social Services Directorate,23/03/2024,20,OYSTER BUS AUTOLOAD,RS194331500,Directorate Business Support Travelling expenses
Environment & Community Services Directorate,23/03/2024,99.99,HARMAN,RN521340000,Weddings & Lettings Equipment
Housing & Regeneration Directorate,24/03/2024,115,AMAZON,RH421041520,Fm(R) - General Stationery
Environment & Community Services Directorate,24/03/2024,40,TFL OYSTER AUTO TOPUP,RN510031500,Development Management Travelling expenses
Chief Executives Directorate,24/03/2024,78,ISTOCK.COM,RC375146500,Communications Team Miscellaneous Expenses
Adult Social Services Directorate,24/03/2024,20,OYSTER BUS AUTOLOAD,RS194331500,Directorate Business Support Travelling expenses
Adult Social Services Directorate,24/03/2024,20,OYSTER BUS AUTOLOAD,RS194331500,Directorate Business Support Travelling expenses
Environment & Community Services Directorate,25/03/2024,30,OYSTER ONLINE,RN540041530,Libraries General Other Office Expenses
Environment & Community Services Directorate,25/03/2024,45,OYSTER ONLINE,RN540041530,Libraries General Other Office Expenses
Environment & Community Services Directorate,25/03/2024,50,OYSTER ONLINE,RN540041530,Libraries General Other Office Expenses
Environment & Community Services Directorate,25/03/2024,165.62,TESCO STORES,RN540040510,Libraries General Food & Consumables
Environment & Community Services Directorate,25/03/2024,149.55,AMAZON,RN540040510,Libraries General Food & Consumables
Environment & Community Services Directorate,25/03/2024,30.05,TESCO METRO ,RN540040000,Libraries General Equipment
Adult Social Services Directorate,25/03/2024,96,COFFEEBAY,RS144240510,Supp Employ - Cafe Sunshine Food & Consumables
Adult Social Services Directorate,25/03/2024,5,ICELAND ,RS144240510,Supp Employ - Cafe Sunshine Food & Consumables
Adult Social Services Directorate,25/03/2024,14.15,FINDEL EDUCATION,RS114340200,DC - Woodville Centre Materials
Adult Social Services Directorate,25/03/2024,10.98,AMAZON,RS114340200,DC - Woodville Centre Materials
Adult Social Services Directorate,25/03/2024,93.79,TESCO STORES,RS114340510,DC - Woodville Centre Food & Consumables
Adult Social Services Directorate,25/03/2024,15.9,SWRAILWAY TCK OFF,RS173046500,JntMHAssessments Miscellaneous Expenses
Environment & Community Services Directorate,25/03/2024,572.4,ST JOHN AMBULANCE,RN524013100,ArtsSalaries Training
Environment & Community Services Directorate,25/03/2024,380,ECHOES ESSENTIAL,RN524555900,ExhibitionsandCollections Other Third Party Payments
Adult Social Services Directorate,25/03/2024,83.8,POST OFFICE COUNTER,RS114242520,The Access Project Postage
Environment & Community Services Directorate,26/03/2024,264.03,AMAZON,RN525046500,Sports Development Miscellaneous Expenses
Housing & Regeneration Directorate,26/03/2024,159,TVLICENSING.CO.UK,RH421041520,Fm(R) - General Stationery
Housing & Regeneration Directorate,26/03/2024,159,TVLICENSING.CO.UK,RH421041520,Fm(R) - General Stationery
Environment & Community Services Directorate,26/03/2024,52.83,AMAZON,RN521140510,Arts Infrastructure Food & Consumables
Chief Executives Directorate,27/03/2024,20,TFL OYSTER AUTO TOPUP,RC376446500,Business Support Miscellaneous Expenses
Adult Social Services Directorate,27/03/2024,820,TWICKENHAM GUESTHOUSE,RS172346500,Teddington & Twick Comm Team Miscellaneous Expenses
Adult Social Services Directorate,27/03/2024,605,WWW.ADASS.ORG.UK,RS190143500,Director of Adult Social Serv Conference Expenses
Adult Social Services Directorate,27/03/2024,20,OYSTER BUS AUTOLOAD,RS194331500,Directorate Business Support Travelling expenses
Adult Social Services Directorate,27/03/2024,20,OYSTER BUS AUTOLOAD,RS194331500,Directorate Business Support Travelling expenses
Adult Social Services Directorate,27/03/2024,20,OYSTER BUS AUTOLOAD,RS194331500,Directorate Business Support Travelling expenses
Environment & Community Services Directorate,27/03/2024,547.42,WWW.EARLYYEARSRESOURCE,RN524540200,ExhibitionsandCollections Materials
Environment & Community Services Directorate,27/03/2024,34,IKEA LTD SHOP ONLINE,RN521140200,Arts Infrastructure Materials
Chief Executives Directorate,28/03/2024,104.38,NISBETS LTD,RC376846500,Mayoralty Miscellaneous Expenses
Chief Executives Directorate,28/03/2024,20,OYSTER BUS AUTOLOAD,RC376446500,Business Support Miscellaneous Expenses
Chief Executives Directorate,28/03/2024,20,TFL OYSTER AUTO TOPUP,RC376446500,Business Support Miscellaneous Expenses
Environment & Community Services Directorate,28/03/2024,910,BOOTS UK ECOMM,RN525046500,Sports Development Miscellaneous Expenses
Adult Social Services Directorate,28/03/2024,15.05,TESCO STORES,RS114340510,DC - Woodville Centre Food & Consumables
Environment & Community Services Directorate,28/03/2024,32.28,VIKING,RN521140000,Arts Infrastructure Equipment
Environment & Community Services Directorate,28/03/2024,55.58,AMAZON,RN521340200,Weddings & Lettings Materials
Adult Social Services Directorate,28/03/2024,161.92,TESCO STORES,RS114240510,The Access Project Food & Consumables
